Workbook

Sheet Data Input
A1: STATE OF ARIZONA CLOSING PACKAGE O - GASB 96 SBITAs - Form 80a Collection Form for FY2024 SBITAs (Subscription-Based Information Technology Arrangements)
A2: ----- Due Date 8/23/2024 -----
A3: This FILLABLE form is designed to capture your agency's GASB 96 SBITA information.
A5: Reporting background:
A6: Please complete this form for every SBITA contract that qualifies as a GASB 96 SBITA AND has a start date during FY2024 (July 1, 2023 - June 30, 2024). For example: - Meets scope requirements and is not listed as specifically EXCLUDED, - Total SBITA payments + capitalizable implementation costs are greater than the Materiality Threshold of $5,000,000, and - Has a Maximum Possible Subscription Term of more than 12 months. You should have completed the "SBITA Decision Form" first to verify qualifications (Closing Package Section O - link at right): | B6: Closing Package Section O: Form 80 - SBITA Decision Form
A8: STEPS:
A9: 1. Collect the SBITA Contracts and other information for all qualifying SBITAs identified on Decision Form and use that information to fill out this Collection Form.
A10: 2. Save a copy of this Collection Form and rename with your Agency's 3 letter ID (for example, "ADA FY2024 SBITA Collection Form").
A11: 3. Complete the following sections by entering in the applicable information for each subscription within a separate column (starting with column C). There are 10 columns provided. If you have more than 10 SBITAs, duplicate the form & label as needed (1 of 2, 2 of 2, or 1 of 3, 2 of 3, 3 of 3, etc).
A12: 4. Maintain all documentation and supporting workpapers to support your conclusion for audit purposes in a permanent file (i.e. SBITA Contracts, Decision Form, and this SBITA Collection Form).
A13: 6. Return a copy of this SBITA Collection Form along with the related SBITA contracts and pricing spreadsheets (if separate) to the ACFR e-mail address at right by the Due Date listed above. | B13: ACFR@azdoa.gov
A15: Note 1 - The Teal highlighted cells are for manual or drop-down input. The Orange highlighted cells contain formulas and will automatically fill. Please do not change the Orange cells.
A16: Note 2 - Do not insert new columns or rows. As noted above, if you have more than 10 SBITAs, duplicate the form instead of inserting new columns.
A17: Note 3 - Several sections below mention the criteria, 'Reasonably Certain'. To be reasonably certain means that there is a greater than probable chance an event will take place.
A19: The Decision Form includes an overview of GASB 96. The full text of GASB Statement 96 can be found here: | B19: GASB 96 - SBITAs
A21: For additional questions on any of the above steps (including filling out this form), please contact: | B21: ACFR@azdoa.gov
A23: I. Agency Information
A24: (Only need to fill out this section once for entire worksheet)
A25: Agency three letter ID used in AZ360 (Example: Arizona Department of Administration = ADA):
A26: Preparer Name:
A27: Preparer E-mail:
A28: Preparer Phone:
A29: Date Completed:
A30: Approved by:
A32: How many qualifying GASB 96 SBITAs were identified on the SBITA Decision Form? If more than 10, the agency will need to fill out multiple forms (label them 1 of 2, 2 of 2, or 1 of 3, 2 of 3, 3 of 3, etc)
A34: II. General Information | B34: Example (complex) | C34: SBITA # 1 | D34: SBITA # 2 | E34: SBITA # 3 | F34: SBITA # 4 | G34: SBITA # 5 | H34: SBITA # 6 | I34: SBITA # 7 | J34: SBITA # 8 | K34: SBITA # 9 | L34: SBITA # 10
A35: 1a. Contract # if specific to this SBITA (If the contract is a Statewide Contract used for multiple SBITAs, please create your own rational numbering system, i.e. agency code, 2 digit FY and a 2 digit #) | B35: ADA2401
A37: 1b. If using a Statewide Contract used for multiple SBITAs, please provide the Statewide Contract # here (N/A if not applicable) | B37: CTR124578
A39: 2. Name of the SBITA Vendor (Vendor where payments are sent) | B39: A+ Software & Hosting, Inc
A41: 3. Name &/or Short Description of Software Subscription or Other IT-related Arrangement
A42: Please provide name of software and/or a short description of any other related cloud infrastructure access (i.e. vendor server, cloud-based computing such as SaaS, PaaS or IaaS, etc) | B42: A+ Hosting
A44: 4. Is this SBITA a NEW SBITA (entered into between 7/1/2023 - 6/30/2024) or an Existing SBITA which previously did not meet the reporting threshold but now qualifies due to a Significant Modification? | B44: Existing w/Significant Modification
A46: 5. Is the entire Subscription Payment paid from One Source of funding or Divided between Funds or Agencies? | B46: Divided - Fill out Subscrptn Split Tab
A47: If the payment is divided, then please switch to the "Subscrptn Split" Tab to fill out the payment split info (click on hyperlink to the right for correct corresponding SBITA # column). | B47: Example - Subscrptn Split | C47: SBITA # 1 - Subscrptn Split | D47: SBITA # 2 - Subscrptn Split | E47: SBITA # 3 - Subscrptn Split | F47: SBITA # 4 - Subscrptn Split | G47: SBITA # 5 - Subscrptn Split | H47: SBITA # 6 - Subscrptn Split | I47: SBITA # 7 - Subscrptn Split | J47: SBITA # 8 - Subscrptn Split | K47: SBITA # 9 - Subscrptn Split | L47: SBITA # 10 - Subscrptn Split
A48: If the funding is all from One Source, please provide the following Chart of Accounts (COA) Elements below. REQUIRED elements are starred (*). Use any other COA indicated below that will help identify the payments made for each SBITA.
A49: Agency * | B49: see Subscription Split Tab
A50: Fund *
A51: Object *
A52: Appropriation
A53: Unit
A54: Task
A55: Sub Task
A56: Program
A57: Phase
A58: Program Period
A59: Dept Object
A61: III. Asset Information
A62: 6. Identify Asset type (Software or Other IT Arrangement)
A63: All SBITAs will be capitalized as a "SBITA", but useful life calculations require a little deeper classification. - A subscription for "Software" could be identified in a contract as "Software" or as a "SaaS" (Software as a Service) - Software useful life is based on cost more than (>) or less than (<) $10 million. Review instructions on Asset Adj & PV Calc tabs to determine if the cost is over or under $10 million. - A subscription for an "Other IT Arrangement" could include Hosting, Data Usage, or other activities identified in a contract (i.e. PaaS (Platform as a Service) or IaaS (Infrastructure as a Service) arrangements). - Other IT Arrangements do not have a defined useful life and will therefore use the SBITA Term for useful life. | B63: Other IT Arrangement
A65: Useful life
A66: 7. Useful life per Capital Asset conventions for the State (will automatically fill) | B66: =VLOOKUP(B63,'Drop Down List'!$A3:$B5,2,FALSE) -> Use SBITA term | C66: =VLOOKUP(C63,'Drop Down List'!$A3:$B5,2,FALSE) ->  | D66: =VLOOKUP(D63,'Drop Down List'!$A3:$B5,2,FALSE) ->  | E66: =VLOOKUP(E63,'Drop Down List'!$A3:$B5,2,FALSE) ->  | F66: =VLOOKUP(F63,'Drop Down List'!$A3:$B5,2,FALSE) ->  | G66: =VLOOKUP(G63,'Drop Down List'!$A3:$B5,2,FALSE) ->  | H66: =VLOOKUP(H63,'Drop Down List'!$A3:$B5,2,FALSE) ->  | I66: =VLOOKUP(I63,'Drop Down List'!$A3:$B5,2,FALSE) ->  | J66: =VLOOKUP(J63,'Drop Down List'!$A3:$B5,2,FALSE) ->  | K66: =VLOOKUP(K63,'Drop Down List'!$A3:$B5,2,FALSE) ->  | L66: =VLOOKUP(L63,'Drop Down List'!$A3:$B5,2,FALSE) -> 
A68: 8. Total (Remaining) Subscription Term Term per #18 (will automatically fill once completed below) | B68: =B98 -> 84 | C68: =C98 -> 1 | D68: 1 | E68: =E98 -> 1 | F68: 1 | G68: 1 | H68: 1 | I68: 1 | J68: 1 | K68: 1 | L68: 1
A70: 9. Useful Life for SBITA Asset based on answers above (will automatically fill) | B70: =IF(B66<B68,B66,B68) -> 84 | C70: =IF(C66<C68,C66,C68) ->  | E70: =IF(E66<E68,E66,E68) -> 
A72: 10. Are there any adjustments for measurement of the SBITA Asset?
A73: Per GASB 96, the SBITA Asset cost = + Initial SBITA Liability (calculated in PV calc tab) Plus/Minus Asset Adjustments: - Incentives from SBITA Vendor received at or before Go-Live Date (i.e. to buy out a preexisting obligation or reimburse certain implementation costs) + Payments made to SBITA Vendor at or before Go-Live Date (i.e. downpayment or subscription payments before Go-Live Date) + Capitalizable Implementation Costs (includes staff time, consultation costs and any other costs related to implementation) | B73: Yes - Fill out on Asset Adj Tab
A74: If Yes, then please read Asset Adjustment instructions carefully in Asset Adj tab and fill out within the corresponding column: | B74: Example - Asset Adj | C74: SBITA # 1 - Asset Adj | D74: SBITA # 2 - Asset Adj | E74: SBITA # 3 - Asset Adj | F74: SBITA # 4 - Asset Adj | G74: SBITA # 5 - Asset Adj | H74: SBITA # 6 - Asset Adj | I74: SBITA # 7 - Asset Adj | J74: SBITA # 8 - Asset Adj | K74: SBITA # 9 - Asset Adj | L74: SBITA # 10 - Asset Adj
A75: Note: If SBITA previously did not meet the materiality threshold but now qualifies due to a Significant Modification AND that Significant Modification includes an UPGRADE, please use the Asset Adj tab to calculate and report the Capitalizable Implementation Costs of the Upgrade.
A77: 11. Software capitalized in AZ360?
A78: Because the calculation for the SBITA Asset includes the Subscripton Term, Present Value of the Liability AND Capitalizable Implementation Costs, this calculation will be performed manually by the GAAP Group outside of AZ360 and should NOT be entered into AZ360. If this was done in error, please indicate "Yes" here. | B78: No
A80: 12. If the above question is answered Yes, please indicate the Asset # in AZ360 (You will be contacted by the GAAP Group with instructions on how to correct this). | B80: N/A
A82: IV. SBITA Term (Subscription and Implementation)
A83: 13. Contract Start Date
A84: Enter the Effective Contract Start Date. This may or may not be the same as the signed date. | B84: 2023-09-01
A86: 14. Date Put Into Service/Go-Live Date (may be different than above)
A87: - If there will be a period needed to implement the software or other IT-related subscription, enter the Date the Software was/will be Put Into Service, or Go-Live Date (if still in the implementation phase, enter the EXPECTED Go-Live Date). - If put into service immediately, then enter the Contract Start Date. | B87: 2024-09-01
A89: 15. Contracted Subscription Term End Date
A90: Enter the date the contracted SBITA term ends, unless the agency is Reasonably Certain to exercise a Termination Clause, in which case, enter the date the agency plans to terminate the subscription. | B90: 2029-08-31
A91: Subscription Term in months (will automatically fill) - HIDE THIS LINE IN FINAL VERSION | B91: =ROUND(DATEDIF(B87,B90,"M"),0)+1 -> 60 | C91: =ROUND(DATEDIF(C87,C90,"M"),0)+1 -> 1 | D91: =ROUND(DATEDIF(D87,D90,"M"),0)+1 -> 1 | E91: 1 | F91: 1 | G91: 1 | H91: 1 | I91: 1 | J91: 1 | K91: 1 | L91: 1
A93: 16. Options to Extend Term
A94: If subscription term extensions are available in the contract, AND the agency is reasonably certain to exercise it, enter # of months available to extend the subscription. | B94: 24 | E94: 0
A96: 17. Subscription End Date including Extensions (will automatically fill). | B96: =EDATE(B87,B98)-1 -> 2031-08-31 | C96: =EDATE(C87,C98)-1 -> 1900-01-30 | D96: =EDATE(D87,D98)-1 -> 1900-01-30 | E96: 1900-01-30 | F96: 1900-01-30 | G96: 1900-01-30 | H96: 1900-01-30 | I96: 1900-01-30 | J96: 1900-01-30 | K96: 1900-01-30 | L96: 1900-01-30
A98: 18. Total Subscription Term including Extensions in Months (will automatically fill) | B98: =B91+B94 -> 84 | C98: =C91+C94 -> 1 | D98: 1 | E98: =E91+E94 -> 1 | F98: 1 | G98: 1 | H98: 1 | I98: 1 | J98: 1 | K98: 1 | L98: 1
A100: 19. Frequency of Subscription Payments
A101: Enter how often subscription payments are made (Monthly, Quarterly, Semi-Annually, Annually). If payments are Less Often than Annually, choose Annually from the dropdown list here (frequency must be at least Annually for Present Value Calculation to work). In the PV Calc tab, there are special instructions (Step #1f) and a space to describe the payment frequency (Step #1g) if Less Often than Annually. | B101: Semi-annually
A102: # of pmts/yr - HIDE THIS LINE IN FINAL VERSION | B102: =IF(B101="Weekly",52,IF(B101="Monthly",12,IF(B101="Quarterly",4,IF(B101="Semi-Annually",2,1)))) -> 2 | C102: 1 | D102: =IF(D101="Weekly",52,IF(D101="Monthly",12,IF(D101="Quarterly",4,IF(D101="Semi-Annually",2,1)))) -> 1 | E102: 1 | F102: 1 | G102: 1 | H102: 1 | I102: 1 | J102: 1 | K102: 1 | L102: 1
A104: 20. How many payments from Date Put Into Service/Go-Live Date (#14) to Subscription End Date including Extensions (#17)?
A105: - If payments are monthly, this answer will most likely be the same as the calculated number of months. Please calculate carefully if payments are not monthly. - If payments are Less Often than Annually, list the # of years of the lease term rather than the total # of payments (e.g. payment frequency every 5 years with a 20 year term would have a total of 4 payments, but enter 20 here instead of 4). Again, this is necessary for the Present Value Calculation to work. If this is the case, read PV Calc instructions (Steps #1f & 1g) carefully. | B105: 14
A107: 21. Was the first subscription payment made at the beginning or at the end of the first payment period (a period is the length of time between payments - see frequency of payments in #19)?
A108: - For example, subscription began on 4/1 with monthly payments and first payment was due 4/30, then it would be the end of the first payment period. - For a quarterly period, a payment due within the first 45 days of the quarter would be beginning of the period. | B108: Begin
A109: Coding for Formulas - Begin = 1, End = 0 - HIDE THIS LINE IN FINAL VERSION | B109: =IF(B108="Begin",1,0) -> 1 | C109: 0 | D109: =IF(D108="Begin",1,0) -> 0 | E109: 0 | F109: 0 | G109: 0 | H109: 0 | I109: 0 | J109: 0 | K109: 0 | L109: 0
A111: 22. When is the first subscription payment due AFTER the Go-Live Date?
A112: Per GASB 96, the Subscription Term does not begin until after the SBITA is put into service (Go-Live Date). Therefore, the first payment for the SBITA Liability Present Value Calculation does not occur until AFTER Go-Live. | B112: 2024-09-01
A113: Note: Subscription Payments made BEFORE the Go-Live Date should be reported in the Asset Adj tab (Sections 2c & 2d).
A115: V. SBITA Liability
A116: SBITA Payments - PLEASE SEPARATE PAYMENTS TO BE MADE BETWEEN #23, #24 & #25 as much as possible:
A117: 23. Fixed Subscription Payment - Enter FIRST Fixed Payment Amount here (first payment AFTER Go-Live Date)
A118: To calculate the Fixed Subscription Payment: (a) Start with the fixed subscription periodic payments stated in the contract. (b) In addition, add "Fixed In-Substance Fees" to the above amount (see definition below under variable payments). (c) For payments that depend on an index or a rate (such as the Consumer Price Index or a market interest rate), the payment should be initially measured using the index or rate published as of the start of the subscription term. (d) EXCLUDE any variable usage fees and/or support/maintenance service fees included in the payment (see #24 & 25 below) | B118: 450000
A119: Because payments may not remain the same throughout the subscription term, fill out the Payment Schedule on the PV Calc tab. A space is provided (Step #1g) to describe how often payments increase, formulas, etc.
A121: 24. Variable Usage Fees over and above Fixed In-Substance Fees (do NOT include variable fees on PV Calc tab)
A122: (a) Variable usage fees include any part of the fee calculated on a usage basis. For example, fees calculated as a quantity of users (cost per user) or total gigs of data used, etc. Per user fees are very common and could eliminate a SBITA entirely (if all fees are based on # of users, then there is no fixed cost), so please review pricing details very carefully. (b) "Fixed in-Substance Fees" are the Minimum Usage Costs of a variable usage fee and should be included in the fixed payment portion above. For Example, if a software subscription includes up to 5 gigs of data used for a set fee, but charges extra for every additional gig, the minimum fee for the first 5 gigs is the "Fixed In-Substance Fee", and the per gig fees above that minimum would be the variable fees. The "Fixed In-Substance Fee" should be added to the fixed payments above, and the variable fee would be described here as "$XX/gig used over 5 gigs". Please include how the fee is determined. | B122: $50 per user fee
A124: 25. Support or Maintenance Service Component of subscription agreement (do NOT include these service fees on PV Calc tab)
A125: (a) A service component of a subscription agreement could be, for example, IT Support, Maintenance, Helpline, Troubleshooting, etc. List amount of services periodic payment here (if it changes, list the first payment amount) | B125: =B118*0.025+1200 -> 12450
A127: (b) Please briefly describe the additional charges. | B127: Troubleshooting/Help Services through phone or chat
A129: 26. Termination penalties:
A130: a. Is there a termination penalty if the subscription is terminated before the end of the subscription term? | B130: No
A132: b. If so, is the agency reasonably certain to terminate the subscription early?
A133: Answer Yes only if the agency believes that a fiscal funding clause or termination clause will be exercised and there will be a penalty assessed if it is. | B133: N/A
A134: If Yes, then enter the termination penalty on the PV Calc tab.
A136: 27. Subscription incentives (during subscription term):
A137: a. Does the subscription agreement contain incentives that will occur AFTER the start of the subscription term? - For example, Abated or Free Subscription periods, - Reductions in subscription payments, - Bonus amounts paid from the SBITA Vendor to the State, etc? | B137: No
A139: b. If Yes, please describe: | B139: N/A
A140: If applicable, read instructions on PV Calc tab carefully on how to include subscription incentives in the Payment Schedule (Steps #1d & 1e).
A142: VI. Interest Rate
A143: 28. Enter the interest rate for the SBITA using one of the three methods listed below:
A144: a. If the interest rate is specifically identified in the contract (explicit rate), use this rate.
A145: b. If the explicit rate is unknown, there may be an implicit rate (please see tab, "Implicit Rate info" for additional information and a place to enter the information to calculate it).
A146: c. If both the explicit interest rate and implicit rate are unknown, identify the interest rate in the table below using the subscription term (total subscription term in months is copied here from #18 above for ease of reference). | B146: =B98 -> 84 | C146: 1 | D146: 1 | E146: 1 | F146: 1 | G146: 1 | H146: 1 | I146: 1 | J146: 1 | K146: 1 | L146: 1
A147: For example: If initial contract term was 3 years (36 months) plus a 2-year (24 month) extension, for a total of 5 years (60 months) use the Mid-Term rate below. | B147: 0.031612
A149: Short-Term in months = 0 - 48 months
A150: Mid-Term in months = 49 - 96 months
A151: Long-Term in months = 97 months or longer
A156: 29. Periodic Interest Rate - based on frequency of payments (will automatically fill) | B156: =ROUND(B147/B102,6) -> 0.015806 | C156: 0 | D156: 0 | E156: 0 | F156: 0 | G156: 0 | H156: 0 | I156: 0 | J156: 0 | K156: 0 | L156: 0
A158: VII. Calculate the SBITA Liability & Asset
A159: 30. Fill out the Subscription Payment Schedule on the "PV Calc" tab corresponding to the correct SBITA #.
A160: The Present Value of the SBITA Liability, Amortization Table and SBITA Asset Cost will be calculated in each respective PV Calc tab. These are calculated with macros, and are not required to be completed by the agencies. - At a minimum, however, the Subscription Payment Schedule must be completed. | B160: Example - PV Calc | C160: SBITA # 1 - PV Calc | D160: SBITA # 2 - PV Calc | E160: SBITA # 3 - PV Calc | F160: SBITA # 4 - PV Calc | G160: SBITA # 5 - PV Calc | H160: SBITA # 6 - PV Calc | I160: SBITA # 7 - PV Calc | J160: SBITA # 8 - PV Calc | K160: SBITA # 9 - PV Calc | L160: SBITA # 10 - PV Calc

Sheet Subscrptn Split
A1: GASB 96 SBITA Collection Form - Subscription Split Info - for SBITAs paid from multiple sources
A2: If a SBITA has more than one funding source for the payments during the subscription term, please complete the information below.
A4: Note 1 - The Teal highlighted cells are for manual or drop-down input. The Orange highlighted cells contain formulas and will automatically fill. Please do not change the Orange cells.
A5: Note 2 - If the Agency divides out the SBITA payment with a Cost Allocation Function (or divides it out to more than the 4 lines provided), then ONLY provide the breakout for the 3 REQUIRED COA Elements to reduce the number of lines needed to be reported. The other COA elements may be important for agency or unit internal reporting, but is not necessary for reporting at the ACFR level.
A6: Note 3 - Only provide split information for the Fixed Subscription amount to be paid (#23 on Data Input tab). Exclude the COAs (if different) for any variable payments (#24) or payments for services, maintenance, etc (#25) that are identified separately within the SBITA contract.
A8: Use the SAME COLUMN here as was used in the "Data Input" tab. | B8: Example | C8: SBITA # 1 | D8: SBITA # 2 | E8: SBITA # 3 | F8: SBITA # 4 | G8: SBITA # 5 | H8: SBITA # 6 | I8: SBITA # 7 | J8: SBITA # 8 | K8: SBITA # 9 | L8: SBITA # 10
A9: Contract # (#1a from Data Input tab) | B9: ='Data Input'!B35 -> ADA2401 | C9: ='Data Input'!C35 -> 0 | D9: ='Data Input'!D35 -> 0 | E9: ='Data Input'!E35 -> 0 | F9: ='Data Input'!F35 -> 0 | G9: ='Data Input'!G35 -> 0 | H9: ='Data Input'!H35 -> 0 | I9: ='Data Input'!I35 -> 0 | J9: ='Data Input'!J35 -> 0 | K9: ='Data Input'!K35 -> 0 | L9: ='Data Input'!L35 -> 0
A11: Is the subscription payment divided by a Percentage (%), or a Specific Dollar ($) Amount (i.e. 50% paid by one Source, and 50% paid by another Source; or first $1,000 paid by a Grant, the remainder paid by another Source)? | B11: Percentage (%)
A12: Based on your answer, please fill out the proper section below (Percentage or Dollar Amount Split)
A14: Percentage (%) Split:
A15: How many Sources are there (how many funding lines in your SBITA payment)? | B15: 2
A17: 1 - Percentage of funding from First Source | B17: 0.7
A18: Please provide COA for First Funding Source below. REQUIRED elements are starred (*). Use any other COA indicated below that will help identify the payments made for each lease.
A19: 1a - Agency * | B19: ADA
A20: 1b - Fund * | B20: AD1234
A21: 1c - Object * | B21: 7160
A22: 1d - Appropriation
A23: 1e - Unit
A24: 1f - Task
A25: 1g - Sub Task
A26: 1h - Program
A27: 1i - Phase
A28: 1j - Program Period
A29: 1k - Dept Object
A31: 2 - Percentage of funding from Second Source | B31: 0.3
A32: Please provide COA for Second Funding Source below. REQUIRED elements are starred (*). Use any other COA indicated below that will help identify the payments made for each lease.
A33: 2a - Agency * | B33: ADA
A34: 2b - Fund * | B34: 1000
A35: 2c - Object * | B35: 7160
A36: 2d - Appropriation
A37: 2e - Unit
A38: 2f - Task
A39: 2g - Sub Task
A40: 2h - Program
A41: 2i - Phase
A42: 2j - Program Period
A43: 2k - Dept Object
A45: 3 - Percentage of funding from Third Source
A46: Please provide COA for Third Funding Source below. REQUIRED elements are starred (*). Use any other COA indicated below that will help identify the payments made for each lease.
A47: 3a - Agency *
A48: 3b - Fund *
A49: 3c - Object *
A50: 3d - Appropriation
A51: 3e - Unit
A52: 3f - Task
A53: 3g - Sub Task
A54: 3h - Program
A55: 3i - Phase
A56: 3j - Program Period
A57: 3k - Dept Object
A59: 4 - Percentage of funding from Fourth Source
A60: Please provide COA for Fourth Funding Source below. REQUIRED elements are starred (*). Use any other COA indicated below that will help identify the payments made for each lease.
A61: 4a - Agency *
A62: 4b - Fund *
A63: 4c - Object *
A64: 4d - Appropriation
A65: 4e - Unit
A66: 4f - Task
A67: 4g - Sub Task
A68: 4h - Program
A69: 4i - Phase
A70: 4j - Program Period
A71: 4k - Dept Object
A73: Specific Dollar ($) Amount Split:
A74: How many Sources are there (how many funding lines in your SBITA payment)?
A76: 1 - Amount of funding from First Source
A77: Please provide COA for First Funding Source below. REQUIRED elements are starred (*). Use any other COA indicated below that will help identify the payments made for each lease.
A78: 1a - Agency *
A79: 1b - Fund *
A80: 1c - Object *
A81: 1d - Appropriation
A82: 1e - Unit
A83: 1f - Task
A84: 1g - Sub Task
A85: 1h - Program
A86: 1i - Phase
A87: 1j - Program Period
A88: 1k - Dept Object
A90: 2 - Amount of funding from Second Source
A91: Please provide COA for Second Funding Source below. REQUIRED elements are starred (*). Use any other COA indicated below that will help identify the payments made for each lease.
A92: 2a - Agency *
A93: 2b - Fund *
A94: 2c - Object *
A95: 2d - Appropriation
A96: 2e - Unit
A97: 2f - Task
A98: 2g - Sub Task
A99: 2h - Program
A100: 2i - Phase
A101: 2j - Program Period
A102: 2k - Dept Object
A104: 3 - Amount of funding from Third Source
A105: Please provide COA for Third Funding Source below. REQUIRED elements are starred (*). Use any other COA indicated below that will help identify the payments made for each lease.
A106: 3a - Agency *
A107: 3b - Fund *
A108: 3c - Object *
A109: 3d - Appropriation
A110: 3e - Unit
A111: 3f - Task
A112: 3g - Sub Task
A113: 3h - Program
A114: 3i - Phase
A115: 3j - Program Period
A116: 3k - Dept Object
A118: 4 - Amount of funding from Fourth Source
A119: Please provide COA for Fourth Funding Source below. REQUIRED elements are starred (*). Use any other COA indicated below that will help identify the payments made for each lease.
A120: 4a - Agency *
A121: 4b - Fund *
A122: 4c - Object *
A123: 4d - Appropriation
A124: 4e - Unit
A125: 4f - Task
A126: 4g - Sub Task
A127: 4h - Program
A128: 4i - Phase
A129: 4j - Program Period
A130: 4k - Dept Object

Sheet Asset Adj
A1: GASB 96 SBITA Collection Form - Asset Adjustments
A2: If a SBITA has additional costs or incentives at or before the In-Service (or Go-Live) Date, the Subscription Asset will need to be adjusted.
A4: Per GASB 96, the SBITA Asset cost = + Initial SBITA Liability (calculated in PV calc tab) Plus/Minus Asset Adjustments: - Incentives from SBITA Vendor received at or before Go-Live Date (i.e. to buy out a preexisting obligation or reimburse certain implementation costs) + Payments made to SBITA Vendor at or before Go-Live Date (i.e. downpayment or subscription payments before Go-Live Date) + Capitalizable Implementation Costs (includes staff time, consultation costs and any other costs related to implementation) | C4: SBITA # 1 - Asset Adj Please fully read instructions to the left before filling in requested information below | D4: SBITA # 2 - Asset Adj Please fully read instructions to the left before filling in requested information below | E4: SBITA # 3 - Asset Adj Please fully read instructions to the left before filling in requested information below | F4: SBITA # 4 - Asset Adj Please fully read instructions to the left before filling in requested information below | G4: SBITA # 5 - Asset Adj Please fully read instructions to the left before filling in requested information below | H4: SBITA # 6 - Asset Adj Please fully read instructions to the left before filling in requested information below | I4: SBITA # 7 - Asset Adj Please fully read instructions to the left before filling in requested information below | J4: SBITA # 8 - Asset Adj Please fully read instructions to the left before filling in requested information below | K4: SBITA # 9 - Asset Adj Please fully read instructions to the left before filling in requested information below | L4: SBITA # 10 - Asset Adj Please fully read instructions to the left before filling in requested information below
A6: There are 3 phases to software implementation, but not all phases are capitalizable:
A7: (1) Preliminary Project Stage | B7: EXPENSE
A8: Includes: The conceptual formulation and evaluation of alternatives, the determination of the existence of needed technology, and the final selection of alternatives for the SBITA (including contract negotiations)
A9: (2) Initial Implementation Stage | B9: CAPITALIZE
A10: Includes: Ancillary charges related to designing the chosen path (configuration, coding, testing & installation), and other charges necessary to place the subscription asset into service
A11: Types of costs that might occur in this stage: Consulting fees from the SBITA Vendor or a third party consultant, Internal Staff Time related to the activities described above
A12: This stage is complete when the SBITA Asset is placed into service (Go-Live Date)
A13: EXCLUSIONS from Capitalizable Implementation Costs: Training | B13: EXPENSE
A14: Always expense training costs, whether during the initial implementation stage or operational stage
A15: (3) Operation & Additional Implementation Stage | B15: Expense or Capitalize (see below)
A16: (a) Includes: Maintenance, troubleshooting, & other activities associated with the government's ongoing access to the underlying IT assets &/or SBITA asset. | B16: EXPENSE
A17: (b) Also may include additional implementation activities such as costs related to additional modules for the software not yet in service or upgrades | B17: CAPITALIZE
A18: Note: If possible, the State would prefer to track separate modules as separate SBITAs, but will add to the original asset if it is not possible to determine how to split the contract into those separate components. | B18: Contact the GAAP Group to discuss if relavent
A20: Note 1 - The Teal highlighted cells are for manual or drop-down input. The Orange highlighted cells contain formulas and will automatically fill. Please do not change the Orange cells.
A21: Note 2 - If there are any amounts reported on this tab, you MUST attach Documentation (i.e. reports from AZ360) totaling the adjustments reported below for the current fiscal year. The backup should include the required COA elements listed below as well as the Date & FY of the transactions. If not recorded in AZ360, may attach invoices from the vendor for additional costs, or evidence of incentives received if paid to a third party.
A22: Note 3 - Object 8485 - SBITA Implementation (a Capital Outlay acct) has been created to track Capitalizable Implementatiom Costs paid to the SBITA Vendor or a 3rd party consultant. **Object 8485 - SBITA Implementation is suggested, but not required, for recording Capitalizable Implementation Costs for SBITAs**
A24: Use the SAME COLUMN here as was used in the "Data Input" tab. | B24: Example | C24: SBITA # 1 | D24: SBITA # 2 | E24: SBITA # 3 | F24: SBITA # 4 | G24: SBITA # 5 | H24: SBITA # 6 | I24: SBITA # 7 | J24: SBITA # 8 | K24: SBITA # 9 | L24: SBITA # 10
A25: Contract # (#1a from Data Input tab) | B25: ='Data Input'!B35 -> ADA2401 | C25: ='Data Input'!C35 -> 0 | D25: ='Data Input'!D35 -> 0 | E25: ='Data Input'!E35 -> 0 | F25: ='Data Input'!F35 -> 0 | G25: ='Data Input'!G35 -> 0 | H25: ='Data Input'!H35 -> 0 | I25: ='Data Input'!I35 -> 0 | J25: ='Data Input'!J35 -> 0 | K25: ='Data Input'!K35 -> 0 | L25: ='Data Input'!L35 -> 0
A27: Are there any adjustments for measurement of the SBITA Asset? (#10 from Data Input tab) | B27: ='Data Input'!B73 -> Yes - Fill out on Asset Adj Tab | C27: ='Data Input'!C73 -> 0 | D27: ='Data Input'!D73 -> 0 | E27: ='Data Input'!E73 -> 0 | F27: ='Data Input'!F73 -> 0 | G27: ='Data Input'!G73 -> 0 | H27: ='Data Input'!H73 -> 0 | I27: ='Data Input'!I73 -> 0 | J27: ='Data Input'!J73 -> 0 | K27: ='Data Input'!K73 -> 0 | L27: ='Data Input'!L73 -> 0
A29: Contract Start Date (#13 from Data Input tab) | B29: ='Data Input'!B84 -> 2023-09-01 | C29: ='Data Input'!C84 -> 00:00:00 | D29: ='Data Input'!D84 -> 00:00:00 | E29: ='Data Input'!E84 -> 00:00:00 | F29: ='Data Input'!F84 -> 00:00:00 | G29: ='Data Input'!G84 -> 00:00:00 | H29: ='Data Input'!H84 -> 00:00:00 | I29: ='Data Input'!I84 -> 00:00:00 | J29: ='Data Input'!J84 -> 00:00:00 | K29: ='Data Input'!K84 -> 00:00:00 | L29: ='Data Input'!L84 -> 00:00:00
A30: It is possible to have adjustments to the SBITA Asset even without an implementation period as not all adjustment items listed above are related to implementation.
A32: Date Put Into Service/Go-Live Date (#14 from Data Input tab) | B32: ='Data Input'!B87 -> 2024-09-01 | C32: ='Data Input'!C87 -> 00:00:00 | D32: ='Data Input'!D87 -> 00:00:00 | E32: ='Data Input'!E87 -> 00:00:00 | F32: ='Data Input'!F87 -> 00:00:00 | G32: ='Data Input'!G87 -> 00:00:00 | H32: ='Data Input'!H87 -> 00:00:00 | I32: ='Data Input'!I87 -> 00:00:00 | J32: ='Data Input'!J87 -> 00:00:00 | K32: ='Data Input'!K87 -> 00:00:00 | L32: ='Data Input'!L87 -> 00:00:00
A33: If SBITA is not yet in service, this is the ESTIMATED Go-Live Date per the contract
A35: 1. Incentives from the SBITA Vendor
A36: (a) Per the description above, were any incentives received from the SBITA Vendor AT or BEFORE the Go-Live Date (could be during the implementation period)? | B36: No
A38: (b) If YES, please describe [if incentive from SBITA Vendor was paid to a 3rd party (i.e. to buy out a preexisting obligation), please provide details here] | B38: N/A
A40: (c) Amount received (or deemed received) DURING FY2024 (7/1/2023 - 6/30/2024) - Please enter COA info below | B40: 0
A41: (d) Amount EXPECTED TO BE received (or deemed received) in a future year (7/1/2024 or later) but before Go-Live Date | B41: 0
A43: (e) Please provide COA for any incentives received from the SBITA Vendor in 1(c) above (received during FY2024). REQUIRED elements are starred (*). Use any other COA indicated below that will help identify the payments made for each SBITA.
A44: Note: If incentive was paid directly to a 3rd party AND was not recorded into AZ360, please explain here | B44: N/A
A45: 1(e)i - Agency *
A46: 1(e)ii - Fund *
A47: 1(e)iii - Revenue or Object (please indicate which) *
A48: 1(e)iv - Appropriation
A49: 1(e)v - Unit
A50: 1(e)vi - Task
A51: 1(e)vii - Sub Task
A52: 1(e)viii - Program
A53: 1(e)ix - Phase
A54: 1(e)x - Program Period
A55: 1(e)xi - Dept Object
A57: 2. Payments made to the SBITA Vendor at or before the Go-Live Date NOT related to implementation (i.e. Downpayment or Subscription Payments made before Go-Live Date)
A58: (a) Per the description above, were any payments made to the SBITA Vendor AT or BEFORE the Go-Live Date (could be during the implementation period)? | B58: Yes
A60: (b) If YES, please describe the nature of the payments | B60: 1st Subscription Payment was during implementation period
A62: (c) Amount paid DURING FY2024 (7/1/2023 - 6/30/2024) - Please enter COA info below | B62: 450000
A63: (d) Amount EXPECTED TO BE paid in a future year (7/1/2024 or later) but before Go-Live Date (i.e. additional subscription payments due before expected Go-Live Date). | B63: 0
A65: (e) Please provide COA for amounts listed in 2(c) above (paid during FY2024). REQUIRED elements are starred (*). Use any other COA indicated below that will help identify the payments made for each SBITA.
A66: 2(e)i - Agency * | B66: ADA
A67: 2(e)ii - Fund * | B67: AD1234
A68: 2(e)iii - Object * | B68: 7160
A69: 2(e)iv - Appropriation
A70: 2(e)v - Unit
A71: 2(e)vi - Task
A72: 2(e)vii - Sub Task
A73: 2(e)viii - Program
A74: 2(e)ix - Phase
A75: 2(e)x - Program Period
A76: 2(e)xi - Dept Object
A78: 3. Payments made to the SBITA Vendor and/or a 3rd party at or before the Go-Live Date related to Capitalizable Implementation Costs
A79: Note: If SBITA was previously excluded due to not meeting the materiality threshold, but now qualifies due to a significant modification AND this modification includes an UPGRADE, please include the Capitalizable Implementation Costs of the Upgrade here (described in Phase 3(b) above).
A80: (a) Per the description above, were any payments made to the SBITA Vendor or a 3rd party consultant that qualify as Capitalizable Implementation Costs? | B80: Yes - to 3rd party consultant
A82: (b) If YES, please describe the nature of the payments & name of vendor if a 3rd party consultant | B82: Implementation consultants - Conversion Wizards, Inc
A84: (c) Amount paid DURING FY2024 (7/1/2023 - 6/30/2024) - Please enter COA info below | B84: 1200000
A85: (d) If implementation is not yet complete, amount EXPECTED TO BE PAID in the future (7/1/2024 or later) but BEFORE Go-Live Date | B85: 500000
A87: (e) Please provide COA for amounts listed in 3(c) above (paid during FY2024). REQUIRED elements are starred (*). Use any other COA indicated below that will help identify the payments made for each SBITA.
A88: 3(e)i - Agency * | B88: ADA
A89: 3(e)ii - Fund * | B89: AD1234
A90: 3(e)iii - Object * (Object 8485 - SBITA Implementation has been set up for this, but please provide actual acct used) | B90: 8485
A91: 3(e)iv - Appropriation
A92: 3(e)v - Unit
A93: 3(e)vi - Task
A94: 3(e)vii - Sub Task
A95: 3(e)viii - Program
A96: 3(e)ix - Phase
A97: 3(e)x - Program Period
A98: 3(e)xi - Dept Object
A100: 4. Internal Staff Costs that qualify as Capitalizable Implementation Costs
A101: (a) Per the description above, did any staff time qualify as capitalizable implementation costs and, if so, was that time tracked? Note: DO NOT Include any Staff Training Time in the calculations for this item | B101: Yes & was tracked
A103: (b) If Yes & it was tracked, please describe the specific method used for tracking the time (i.e. specific coding by staff when reporting on their time sheets, tracking manually on a spreadsheet, etc) | B103: Used Program code 1111 on all implementation-related time
A105: (c) If Yes & it was NOT tracked, can a reasonable estimate be made? If so, please provide estimate below. Also, include calculations & methodology in the documentation. | B105: N/A
A107: (d) Internal Staff Implementation Costs paid DURING FY2024 (7/1/2023 - 6/30/2024) - Please enter COA info below (if possible) | B107: 25480
A108: (e) If implementation is not yet complete, Estimated Staff Costs EXPECTED TO BE INCURRED in the future (7/1/2024 or later) but BEFORE Go-Live Date | B108: 5000
A110: (f) If staff time was tracked with a special code in AZ360, please provide the COA for amounts listed in 4(d) above (paid during FY2024). REQUIRED elements are starred (*). Use any other COA indicated below that will help identify the the staff costs. If there are multiple COAs related to staff time (payroll), please ensure that the COAs are included in the backup documentation and notate it here with "Various - see backup".
A111: 4(f)i - Agency * | B111: ADA
A112: 4(f)ii - Fund * | B112: 1000
A113: 4(f)iii - Object * | B113: Various PR accts - see backup
A114: 4(f)iv - Appropriation
A115: 4(f)v - Unit
A116: 4(f)vi - Task
A117: 4(f)vii - Sub Task
A118: 4(f)viii - Program | B118: Program 1111 was used to ID all staff time related to implementation
A119: 4(f)ix - Phase
A120: 4(f)x - Program Period
A121: 4(f)xi - Dept Object
A124: 5. Total Asset Adjustment Costs/Incentives paid/received DURING FY2024 | B124: =-B40+B62+B84+B107 -> 1675480 | C124: 0 | D124: 0 | E124: 0 | F124: 0 | G124: 0 | H124: 0 | I124: 0 | J124: 0 | K124: 0 | L124: 0
A125: 6. Total ESTIMATED Asset Adjustment Costs/Incentives YET TO BE PAID (FY2025 to the end of implementation period) | B125: =-B41+B63+B85+B108 -> 505000 | C125: 0 | D125: 0 | E125: 0 | F125: 0 | G125: 0 | H125: 0 | I125: 0 | J125: 0 | K125: 0 | L125: 0
A127: 8. Based on Go-Live Date, is the Total as of 6/30/2024 the Final Adj Amount or still Development in Process? | B127: =IF(B32<B128,"FINAL Adj Amount","Development in Progress") -> Development in Progress | C127: =IF(C32<$B128,"FINAL Adj Amount","Development in Progress") -> FINAL Adj Amount | D127: =IF(D32<$B128,"FINAL Adj Amount","Development in Progress") -> FINAL Adj Amount | E127: FINAL Adj Amount | F127: FINAL Adj Amount | G127: FINAL Adj Amount | H127: FINAL Adj Amount | I127: FINAL Adj Amount | J127: FINAL Adj Amount | K127: FINAL Adj Amount | L127: FINAL Adj Amount
A128: Last day of current FY - Hide in final version | B128: 2024-06-30
A129: Note: If Implementation Period is not yet complete, then only a Development in Progress Asset will be recognized at this point. The SBITA Liability & SBITA Asset will not be recognized until the SBITA is Put in Service/Go-Live Date. If this is the case, please continue to track all Implementation Costs. This info will be requested in future years through the annual Activity Form. In addition, please DO NOT ENTER ANY SBITA DEVELOPMENT IN PROGRESS or IMPLEMENTATION COSTS INTO AZ360 FIXED ASSETS. Because a SBITA Asset includes any adjustments listed above PLUS the Present Value of the Fixed Payments (Liability), it all needs to be calculated manually.

Sheet Implicit Rate info
A1: GASB 96 SBITA Collection Form - Calculating an Implicit Rate on a SBITA
A3: If an interest rate is not explicitely stated within the SBITA contract, there may be an implicit rate, which can be calculated if the information requested below is available.
A5: In addition to the information provided within the Data Input tab (see orange auto-filled cells below), check the SBITA contract for availability of the 3 additional data items requested below to determine the Implicit Rate.
A7: All 3 items requested below are needed to calculate the Implicit Rate. If this information is unavailable, then use the Discount Rates provided on the Data Input tab (yellow highlighted table).
A9: If ALL of the information requested below is available for a SBITA, please enter the information within the correct SBITA # column below.
A11: Note - The Teal highlighted cells are for manual input. The Orange highlighted cells contain formulas and will automatically fill. Please do not change the Orange cells.
A13: Use the SAME COLUMN here as was used in the "Data Input" tab. | B13: Example | C13: SBITA # 1 | D13: SBITA # 2 | E13: SBITA # 3 | F13: SBITA # 4 | G13: SBITA # 5 | H13: SBITA # 6 | I13: SBITA # 7 | J13: SBITA # 8 | K13: SBITA # 9 | L13: SBITA # 10
A14: Contract # (#1a from Data Input Tab) | B14: ='Data Input'!B35 -> ADA2401 | C14: ='Data Input'!C35 -> 0 | D14: ='Data Input'!D35 -> 0 | E14: ='Data Input'!E35 -> 0 | F14: ='Data Input'!F35 -> 0 | G14: ='Data Input'!G35 -> 0 | H14: ='Data Input'!H35 -> 0 | I14: ='Data Input'!I35 -> 0 | J14: ='Data Input'!J35 -> 0 | K14: ='Data Input'!K35 -> 0 | L14: ='Data Input'!L35 -> 0
A15: Cash Flows at Beginning or End (Section IV, #21 of Data Input tab) | B15: ='Data Input'!B108 -> Begin | C15: ='Data Input'!C108 -> 0 | D15: ='Data Input'!D108 -> 0 | E15: ='Data Input'!E108 -> 0 | F15: ='Data Input'!F108 -> 0 | G15: ='Data Input'!G108 -> 0 | H15: ='Data Input'!H108 -> 0 | I15: ='Data Input'!I108 -> 0 | J15: ='Data Input'!J108 -> 0 | K15: ='Data Input'!K108 -> 0 | L15: ='Data Input'!L108 -> 0
A16: Number of payments (Section IV, #20) | B16: ='Data Input'!B105 -> 14 | C16: ='Data Input'!C105 -> 0 | D16: ='Data Input'!D105 -> 0 | E16: ='Data Input'!E105 -> 0 | F16: ='Data Input'!F105 -> 0 | G16: ='Data Input'!G105 -> 0 | H16: ='Data Input'!H105 -> 0 | I16: ='Data Input'!I105 -> 0 | J16: ='Data Input'!J105 -> 0 | K16: ='Data Input'!K105 -> 0 | L16: ='Data Input'!L105 -> 0
A17: Frequency of payments (Section IV, #19) | B17: ='Data Input'!B101 -> Semi-annually | C17: ='Data Input'!C101 -> 0 | D17: ='Data Input'!D101 -> 0 | E17: ='Data Input'!E101 -> 0 | F17: ='Data Input'!F101 -> 0 | G17: ='Data Input'!G101 -> 0 | H17: ='Data Input'!H101 -> 0 | I17: ='Data Input'!I101 -> 0 | J17: ='Data Input'!J101 -> 0 | K17: ='Data Input'!K101 -> 0 | L17: ='Data Input'!L101 -> 0
A18: Date of first payment (Section IV, #22) | B18: ='Data Input'!B112 -> 2024-09-01 | C18: ='Data Input'!C112 -> 00:00:00 | D18: ='Data Input'!D112 -> 00:00:00 | E18: ='Data Input'!E112 -> 00:00:00 | F18: ='Data Input'!F112 -> 00:00:00 | G18: ='Data Input'!G112 -> 00:00:00 | H18: ='Data Input'!H112 -> 00:00:00 | I18: ='Data Input'!I112 -> 00:00:00 | J18: ='Data Input'!J112 -> 00:00:00 | K18: ='Data Input'!K112 -> 00:00:00 | L18: ='Data Input'!L112 -> 00:00:00
A19: Date Put Into Service/Go-Live Date (#14 from Data Input tab) | B19: ='Data Input'!B87 -> 2024-09-01 | C19: ='Data Input'!C87 -> 00:00:00 | D19: ='Data Input'!D87 -> 00:00:00 | E19: ='Data Input'!E87 -> 00:00:00 | F19: ='Data Input'!F87 -> 00:00:00 | G19: ='Data Input'!G87 -> 00:00:00 | H19: ='Data Input'!H87 -> 00:00:00 | I19: ='Data Input'!I87 -> 00:00:00 | J19: ='Data Input'!J87 -> 00:00:00 | K19: ='Data Input'!K87 -> 00:00:00 | L19: ='Data Input'!L87 -> 00:00:00
A20: Subscription End Date including Extensions (Section IV, #17) | B20: ='Data Input'!B96 -> 2031-08-31 | C20: ='Data Input'!C96 -> 1900-01-30 | D20: ='Data Input'!D96 -> 1900-01-30 | E20: ='Data Input'!E96 -> 1900-01-30 | F20: ='Data Input'!F96 -> 1900-01-30 | G20: ='Data Input'!G96 -> 1900-01-30 | H20: ='Data Input'!H96 -> 1900-01-30 | I20: ='Data Input'!I96 -> 1900-01-30 | J20: ='Data Input'!J96 -> 1900-01-30 | K20: ='Data Input'!K96 -> 1900-01-30 | L20: ='Data Input'!L96 -> 1900-01-30
A22: 1. Fair value of the software at commencement
A24: 2. Expected fair value of the software at the end of the subscription term
A26: 3. Any initial direct costs that the Software Vendor incurs
A28: IF THE IMPLICIT RATE INFO IS FILLED OUT ABOVE, please enter "See Implicit Rate Info tab" within the interest rate cell (Sec VI, #28) on the Data Input tab.
A29: With the information provided above, the GAO office will calculate the Implicit Rate and the Present Value of the Lease.

Sheet How to Enable Macros
A1: YOUR EXCEL TRUST CENTER SETTINGS MUST BE MACRO-ENABLED TO RUN THE MACROS IN THIS FILE.
A2: (This file was created in Excel Version 2016)
A3: To enable settings:
A4: Go to File > Options > Trust Center > Trust Center Settings…
A5: Check "Enable all macros" and "Trust access to the VBA project object model" as shown below.

Sheet Example - PV Calc
A1: Present Value Calculations tab - Example (column B) | B1: Contract # | C1: ='Data Input'!B35 -> ADA2401 | E1: Present Value Table | J1: Amortization Table
A2: Periodic Interest Rate (Section VI, #28-29 from Data Input tab) | B2: ='Data Input'!B156 -> 0.015806 | E2: Period | F2: Payment Amount | G2: Present Value | J2: Period | K2: Date | L2: Beginning Balance | M2: Payment | N2: Principal | O2: Interest | P2: Ending Balance
A3: Cash Flows at Beginning or End (Section IV, #21) | B3: ='Data Input'!B108 -> Begin | C3: Important: | E3: 1 | F3: 450000 | G3: =F3 / (((1+$B$2)) ^ (E3-1)) -> 450000 | J3: 1 | K3: =B6 -> 2024-09-01 | L3: =B25 -> 6305895.624 | M3: 450000 | N3: =M3-O3 -> 450000 | O3: 0 | P3: =L3-N3 -> 5855895.624
A4: Number of payments (Section IV, #20) | B4: ='Data Input'!B105 -> 14 | C4: Do not insert/delete/move | E4: 2 | F4: 450000 | G4: 442997.974 | J4: 2 | K4: =EDATE($B$6,6) -> 2025-03-01 | L4: =P3 -> 5855895.624 | M4: 450000 | N4: 357441.71 | O4: =ROUND(L4*$B$2,2) -> 92558.29 | P4: 5498453.914
A5: Frequency of payments (Section IV, #19) | B5: ='Data Input'!B101 -> Semi-annually | C5: cells B2:B8 | E5: 3 | F5: 450000 | G5: 436104.9 | J5: 3 | K5: =EDATE($B$6,12) -> 2025-09-01 | L5: 5498453.914 | M5: 450000 | N5: 363091.44 | O5: 86908.56 | P5: 5135362.474
A6: Date of first payment (Section IV, #22) | B6: ='Data Input'!B112 -> 2024-09-01 | C6: (macros depend on them) | E6: 4 | F6: 450000 | G6: 429319.0826 | J6: 4 | K6: =EDATE($B$6,18) -> 2026-03-01 | L6: 5135362.474 | M6: 450000 | N6: 368830.46 | O6: 81169.54 | P6: 4766532.014
A7: Date Put Into Service/Go-Live Date (#14 from Data Input tab) | B7: ='Data Input'!B87 -> 2024-09-01 | E7: 5 | F7: 500000 | G7: 469598.7254 | J7: 5 | K7: =EDATE($B$6,24) -> 2026-09-01 | L7: 4766532.014 | M7: 500000 | N7: 424660.19 | O7: 75339.81 | P7: 4341871.824
A8: Subscription End Date including Extensions (Section IV, #17) | B8: ='Data Input'!B96 -> 2031-08-31 | E8: 6 | F8: 500000 | G8: 462291.7421 | J8: 6 | K8: =EDATE($B$6,30) -> 2027-03-01 | L8: 4341871.824 | M8: 500000 | N8: 431372.37 | O8: 68627.63 | P8: 3910499.454
E9: 7 | F9: 500000 | G9: 455098.4559 | J9: 7 | K9: =EDATE($B$6,36) -> 2027-09-01 | L9: 3910499.454 | M9: 500000 | N9: 438190.65 | O9: 61809.35 | P9: 3472308.804
A10: Fixed Subscription Payment Schedule (Section V, #23 & see instructions below): | B10: Amount | C10: # of Payments | E10: 8 | F10: 500000 | G10: 448017.0977 | J10: 8 | K10: =EDATE($B$6,42) -> 2028-03-01 | L10: 3472308.804 | M10: 500000 | N10: 445116.69 | O10: 54883.31 | P10: 3027192.114
A11: Payment Amount #1 & # of Payments at this amount | B11: 450000 | C11: 4 | E11: 9 | F11: 500000 | G11: 441045.9258 | J11: 9 | K11: =EDATE($B$6,48) -> 2028-09-01 | L11: 3027192.114 | M11: 500000 | N11: 452152.2 | O11: 47847.8 | P11: 2575039.914
A12: Payment Amount #2 & # of Payments at this amount | B12: 500000 | C12: 6 | E12: 10 | F12: 500000 | G12: 434183.2257 | J12: 10 | K12: =EDATE($B$6,54) -> 2029-03-01 | L12: 2575039.914 | M12: 500000 | N12: 459298.92 | O12: 40701.08 | P12: 2115740.994
A13: Payment Amount #3 & # of Payments at this amount | B13: 550000 | C13: 4 | E13: 11 | F13: 550000 | G13: 470170.0406 | J13: 11 | K13: =EDATE($B$6,60) -> 2029-09-01 | L13: 2115740.994 | M13: 550000 | N13: 516558.6 | O13: 33441.4 | P13: 1599182.394
A14: Payment Amount #4 & # of Payments at this amount | B14: 0 | C14: 0 | E14: 12 | F14: 550000 | G14: 462854.1676 | J14: 12 | K14: =EDATE($B$6,66) -> 2030-03-01 | L14: 1599182.394 | M14: 550000 | N14: 524723.32 | O14: 25276.68 | P14: 1074459.074
A15: Totals from add'l table below (if needed) | B15: =B102 -> 0 | C15: =C102 -> 0 | E15: 13 | F15: 550000 | G15: 455652.1301 | J15: 13 | K15: =EDATE($B$6,72) -> 2030-09-01 | L15: 1074459.074 | M15: 550000 | N15: 533017.1 | O15: 16982.9 | P15: 541441.974
A16: Total Subscription Payments (sum of all payment amounts * # of payments) | B16: =(B11*C11)+(B12*C12)+(B13*C13)+(B14*C14)+(B15) -> 7000000 | C16: =SUM(C11:C15) -> 14 | E16: 14 | F16: 550000 | G16: 448562.1566 | J16: 14 | K16: =EDATE($B$6,78) -> 2031-03-01 | L16: 541441.974 | M16: 550000 | N16: 541441.97 | O16: 8558.03 | P16: 0.004032441764
A18: Other Payment Considerations: | C18: Answer per Data Input Tab
A19: Termination Penalty (Section V, #26) | B19: 0 | C19: ='Data Input'!B133 -> N/A
A21: Total Other Payment Considerations | B21: =SUM(B19:B20) -> 0
A22: Total Undiscounted Cash Flows (Total Payments + Other Considerations) | B22: =B16+B21 -> 7000000
C24: Important:
A25: Liability Net Present Value (calculated after Macros below run) | B25: =SUM(G:G) -> 6305895.624 | C25: Do not insert/delete/move
C26: NPV must be cell B25
C27: (macros depend on it)
A28: Asset Adjustments (from Asset Adj tab): | B28: Asset Adj Amount
A29: Total Asset Adjustments during Current Year | B29: ='Asset Adj'!B124 -> 1675480
A30: EXPECTED Future Asset Adjustments (if there is an amt here, s/b DIP) | B30: ='Asset Adj'!B125 -> 505000 | C30: DIP or Final?
A31: Total Asset Adjustment | B31: =SUM(B29:B30) -> 2180480 | C31: ='Asset Adj'!B127 -> Development in Progress
A34: SBITA Asset Cost (calculated after Macros below run) | B34: =IF(C31="FINAL Adj Amount",B25+B31,"Not yet determined") -> Not yet determined
A36: The Agency is not required to calculate the Present Value and/or enable Macros,
A37: but Steps 1 & 2 of the instructions below are REQUIRED to be completed.
A38: After completing Steps 1 & 2, if desired to calculate the Present Value, complete Steps 3 - 8:
A40: Note 1: First make sure your Excel settings are correct - | B40: See How to Enable Macros tab
A41: Note 2: Please do not Insert, Delete, or Move any cells, columns or rows as this could cause the Macros to fail.
A42: Note 3: The Teal Cells in columns B & C are for manual input, and the Present Value Table will need to be adjusted in column F.
A43: The Orange cells in columns B & C will automatically fill. The Present Value and Amortization Tables will be generated with the
A44: Macro buttons. Please do not make changes to the orange cells or anywhere within the Tables (except column F).
A46: Step 1 - Fill out the "Fixed Subscription Payment Schedule" above (starting on row 10).
A47: a - To calculate the Fixed Subscription Payment:
A48: i - Start with the fixed subscription periodic payments stated in the contract.
A49: ii - In addition, add "Fixed In-Substance Fees" to the above amount. "Fixed In-Substance Fees" are the Minimum Usage Costs of a variable
A50: usage fee. For Example, if a subscription includes up to 5 gigs of data used for a set fee, but charges extra for every additional gig, the
A51: minimum fee for the first 5 gigs is the "Fixed In-Substance Fee", and the per gig fees above that minimum would be the variable fees.
A52: iii - For payments that depend on an index or a rate (such as the Consumer Price Index or a market interest rate), the payment should be
A53: initially measured using the index or rate published as of the start of the subscription term.
A54: iv - EXCLUDE any variable usage fees and/or support/maintenance service fees included in the payment (see #24 & 25 in Data Input tab)
A55: b - If payments escalate over time, list the beginning payment amount (col B) & # of payments to be paid at that amount (col C), then
A56: move to line #2 and list the next payment amount & # of payments at that amount, etc.
A57: c - If an extension is deemed Reasonably Certain to be exercised, but the amount is listed as "negotiable", then use the fixed
A58: payment amount just prior to the date of extension for those unknown amounts.
A59: d - If there is an Abated or Free Rent period (skipped payment) indicated in the SBITA contract, | C59: Desc of Lease Incentives
A60: indicate that with a $0 payment amount (col B) & the number of payments to be skipped (col C). | C60: ='Data Input'!B139 -> N/A
A61: Make sure to put these skipped payments in the correct order chronologically. For example, if there
A62: is a skipped payment for payment 13, list the first 12 payments on the first line, then list line #2 as
A63: $0 (col B) and 1 (col C), then line #3 as the continuing payments after the skipped payment.
A64: e - If a Bonus payment from the SBITA Vendor is included in the contract, subtract that amount from the payment closest to the proper
A65: chronological period (as described in d above). This may cause that payment amount to be negative.
A66: f - If payments are Less Often than Annually,indicate this in the Payment Schedule above by listing the 1st payment on the 1st row & a 1 in
A67: col C, then the 2nd row should show how many years to be skipped in col C ($0 in col B), then the 3rd row will show the 2nd payment.
A68: Repeat until all payments & all years are represented in the Payment Schdl (total in col C should tie to total yrs of subscription term in
A69: cell B4).
A70: g - Use the Teal box below to add any extra details, how payments change over time (For example, (a) Payment increases 5% every 10 yrs;
A71: (b) Payment recalculated every 5 yrs based on CPI, etc.), or describe payment frequency if Less Often than Annually.
A72: Implementation Period not yet complete. No Liability or RTU Asset until FY2025 when subscription period begins. Only capitalize Development in Process for FY2024.
A75: h - If there are not enough lines in the Payment Schedule above, use the table below to input the additional payment amounts, and the
A76: totals from the additional table will automatically be added to the Payment Schedule above. Contact the GAAP Group if you need more
A77: than 25 lines.
A78: i - Verify that the total # of payments in cell B4 is the same as the sum of col C (cell C16).
A80: Additional Subscription Payment Lines (if needed) | B80: Amount | C80: # of Payments
A81: Payment Amount #5 & # of Payments at this amount | B81: 0 | C81: 0
A82: Payment Amount #6 & # of Payments at this amount | B82: 0 | C82: 0
A83: Payment Amount #7 & # of Payments at this amount | B83: 0 | C83: 0
A84: Payment Amount #8 & # of Payments at this amount | B84: 0 | C84: 0
A85: Payment Amount #9 & # of Payments at this amount | B85: 0 | C85: 0
A86: Payment Amount #10 & # of Payments at this amount | B86: 0 | C86: 0
A87: Payment Amount #11 & # of Payments at this amount | B87: 0 | C87: 0
A88: Payment Amount #12 & # of Payments at this amount | B88: 0 | C88: 0
A89: Payment Amount #13 & # of Payments at this amount | B89: 0 | C89: 0
A90: Payment Amount #14 & # of Payments at this amount | B90: 0 | C90: 0
A91: Payment Amount #15 & # of Payments at this amount | B91: 0 | C91: 0
A92: Payment Amount #16 & # of Payments at this amount | B92: 0 | C92: 0
A93: Payment Amount #17 & # of Payments at this amount | B93: 0 | C93: 0
A94: Payment Amount #18 & # of Payments at this amount | B94: 0 | C94: 0
A95: Payment Amount #19 & # of Payments at this amount | B95: 0 | C95: 0
A96: Payment Amount #20 & # of Payments at this amount | B96: 0 | C96: 0
A97: Payment Amount #21 & # of Payments at this amount | B97: 0 | C97: 0
A98: Payment Amount #22 & # of Payments at this amount | B98: 0 | C98: 0
A99: Payment Amount #23 & # of Payments at this amount | B99: 0 | C99: 0
A100: Payment Amount #24 & # of Payments at this amount | B100: 0 | C100: 0
A101: Payment Amount #25 & # of Payments at this amount | B101: 0 | C101: 0
A102: Total Add'l Subscription Payments (will automatically be added to the Schdl above) | B102: =(B81*C81)+(B82*C82)+(B83*C83)+(B84*C84)+(B85*C85)+(B86*C86)+(B87*C87)+(B88*C88)+(B89*C89)+(B90*C90)+(B91*C91)+(B92*C92)+(B93*C93)+(B94*C94)+(B95*C95)+(B96*C96)+(B97*C97)+(B98*C98)+(B99*C99)+(B100*C100)+(B101*C101) -> 0 | C102: =SUM(C81:C101) -> 0
A105: Step 2 - Fill out the "Other Payment Considerations" section (starting on row 18) ONLY if instructed to do so on the Data Input tab
A106: The Termination Penalty line should only have an amount listed if a termination clause is deemed Reasonably Certain to be exercised
A107: based on decisions by the Agency (response from the Data Input tab is shown in col C) AND this termination will cause a Penalty to be due.
A109: Steps 3 - 8 are OPTIONAL (calculation of Present Value and Amortization Tables)
A110: Step 3 - Click the Macro button below to Generate the first 2 columns of the Present Value (PV) Table.
A113: Step 4 - Using the Payment Schedule filled out in Steps 1 & 2, fill in the Payment Amounts into col F of the PV Table.
A114: a - If there are 12 payments for the 1st payment amount, and 6 payments for the 2nd payment amount, list the 1st amount in the
A115: first 12 rows of the Table, then the 2nd amount for the next 6 rows, and do the same for the remaining payment amounts listed
A116: in the Payment Schedule until all the payments are filled in on the Table.
A117: b - Make sure not to miss any Skipped Payment periods. If the Payment Schedule indicates the 13th payment is $0, then row 13 of the
A118: Table should be $0, same as the Payment Schedule.
A119: c - If there are any amounts listed for "Other Payment Considerations", add it to the final payment. For example, if the final
A120: payment is $20,000, and there is a Termination Penalty listed for $50,000, then the final payment in the Table should be $70,000.
A121: d - Check to make sure that the sum of all the payments entered into col F of the Table is the same as the Total Undiscounted Cash
A122: Flows in cell B22.
A124: Step 5 - Click the Macro button below to Calculate Net Present Value and Generate the PV and Amortization Tables.
A128: Step 6 - Check data for accuracy:
A129: a - Check the date of the final payment in the Amortization Table and compare to Subscription End Date in cell B8. Make sure the final
A130: payment date is reasonable in comparison to the subscription End Date (within same month if payments are Monthly, within the final
A131: quarter if Quarterly, etc).
A132: b - If payments change (there are amounts in Payment Amount #2 + rows), then check the dates the amounts change in the
A133: Amort Table (col K & M) to make sure the payments change on the correct dates as per the SBITA Contract.
A134: c - If 6a and 6b are BOTH correct, skip to Step 8 (Do NOT click the Start Over Macro Button).
A135: d - If 6a or 6b does not appear to be correct:
A136: i - Double-check the Instructions above (Steps 1 - 6), including the check for # of payments in 1i & check for Table payments in 4d.
A137: ii - Double-check cells B2-B8 by reviewing the SBITA Contract. These cells automatically filled based on answers in the Data Input
A138: tab. Make any necessary corrections in the Data Input tab (NOT in cells B2-B8) - the corresponding question #s are referenced above.
A139: iii - Double-Check the Payment Schedule and Other Payment Considerations sections. Compare back to the SBITA contract to
A140: verify, and correct as necessary.
A141: e - Once corrections have been made, click the Macro button below to Delete the PV & Amortization Tables.
A145: Step 7 - Repeat Steps 3-6 as needed until all checks (1i, 4d, 6a, 6b, and 6di-6diii) are correct.
A147: Step 8 - See Net Present Value calculated in cell B25 for the SBITA Liability and the SBITA Asset Cost in cell B34.
A148: Also, see Present Value Table in columns E-G,
A149: and Amortization Table in columns J-P.
A150: Note: If Implementation Period is not yet complete, then only a Development in Process Asset will be recognized at this point (cell B34 will
A151: return a value of "Not yet determined" if implementation is still in process & will also be noted as "Development in Process" in cell C31).
A152: The SBITA Liability & SBITA Asset will not be recognized until the SBITA is Put Into Service/Go-Live Date. If this is the case, please continue
A153: to track all Implementation Costs. This info will be requested in the following year's Closing Package Activity Form.
A155: Please DO NOT add SBITA implementation costs into the AZ360 Fixed Assets System. This will be done manually as the SBITA Asset
A156: includes not only the implementation costs, but also the Present Value of the Subscription Fixed Payments (Liability).

Sheet SBITA 1 - PV Calc
A1: Present Value Calculations tab - SBITA # 1 (column C) | B1: Contract # | C1: ='Data Input'!C35 -> 0
A2: Periodic Interest Rate (Section VI, #28-29 from Data Input tab) | B2: ='Data Input'!C156 -> 0
A3: Cash Flows at Beginning or End (Section IV, #21) | B3: ='Data Input'!C108 -> 0 | C3: Important:
A4: Number of payments (Section IV, #20) | B4: ='Data Input'!C105 -> 0 | C4: Do not insert/delete/move
A5: Frequency of payments (Section IV, #19) | B5: ='Data Input'!C101 -> 0 | C5: cells B2:B8
A6: Date of first payment (Section IV, #22) | B6: ='Data Input'!C112 -> 00:00:00 | C6: (macros depend on them)
A7: Date Put Into Service/Go-Live Date (#14 from Data Input tab) | B7: ='Data Input'!C87 -> 00:00:00
A8: Subscription End Date including Extensions (Section IV, #17) | B8: ='Data Input'!C96 -> 1900-01-30
A10: Fixed Subscription Payment Schedule (Section V, #23 & see instructions below): | B10: Amount | C10: # of Payments
A11: Payment Amount #1 & # of Payments at this amount | B11: 0 | C11: 0
A12: Payment Amount #2 & # of Payments at this amount | B12: 0 | C12: 0
A13: Payment Amount #3 & # of Payments at this amount | B13: 0 | C13: 0
A14: Payment Amount #4 & # of Payments at this amount | B14: 0 | C14: 0
A15: Totals from add'l table below (if needed) | B15: =B102 -> 0 | C15: =C102 -> 0
A16: Total Subscription Payments (sum of all payment amounts * # of payments) | B16: =(B11*C11)+(B12*C12)+(B13*C13)+(B14*C14)+(B15) -> 0 | C16: =SUM(C11:C15) -> 0
A18: Other Payment Considerations: | C18: Answer per Data Input Tab
A19: Termination Penalty (Section V, #26) | B19: 0 | C19: ='Data Input'!C133 -> 0
A21: Total Other Payment Considerations | B21: =SUM(B19:B20) -> 0
A22: Total Undiscounted Cash Flows (Total Payments + Other Considerations) | B22: =B16+B21 -> 0
C24: Important:
A25: Liability Net Present Value (calculated after Macros below run) | B25: =SUM(G:G) -> 0 | C25: Do not insert/delete/move
C26: NPV must be cell B25
C27: (macros depend on it)
A28: Asset Adjustments (from Asset Adj tab): | B28: Asset Adj Amount
A29: Total Asset Adjustments during Current Year | B29: ='Asset Adj'!C124 -> 0
A30: EXPECTED Future Asset Adjustments (if there is an amt here, s/b DIP) | B30: ='Asset Adj'!C125 -> 0 | C30: DIP or Final?
A31: Total Asset Adjustment | B31: =SUM(B29:B30) -> 0 | C31: ='Asset Adj'!C127 -> FINAL Adj Amount
A34: Software Subscription Asset Cost (calculated after Macros below run) | B34: =IF(C31="FINAL Adj Amount",B25+B31,"Not yet determined") -> 0
A36: The Agency is not required to calculate the Present Value and/or enable Macros,
A37: but Steps 1 & 2 of the instructions below are REQUIRED to be completed.
A38: After completing Steps 1 & 2, if desired to calculate the Present Value, complete Steps 3 - 8:
A40: Note 1: First make sure your Excel settings are correct - | B40: See How to Enable Macros tab
A41: Note 2: Please do not Insert, Delete, or Move any cells, columns or rows as this could cause the Macros to fail.
A42: Note 3: The Teal Cells in columns B & C are for manual input, and the Present Value Table will need to be adjusted in column F.
A43: The Orange cells in columns B & C will automatically fill. The Present Value and Amortization Tables will be generated with the
A44: Macro buttons. Please do not make changes to the orange cells or anywhere within the Tables (except column F).
A46: Step 1 - Fill out the "Fixed Subscription Payment Schedule" above (starting on row 10).
A47: a - To calculate the Fixed Subscription Payment:
A48: i - Start with the fixed subscription periodic payments stated in the contract.
A49: ii - In addition, add "Fixed In-Substance Fees" to the above amount. "Fixed In-Substance Fees" are the Minimum Usage Costs of a variable
A50: usage fee. For Example, if a subscription includes up to 5 gigs of data used for a set fee, but charges extra for every additional gig, the
A51: minimum fee for the first 5 gigs is the "Fixed In-Substance Fee", and the per gig fees above that minimum would be the variable fees.
A52: iii - For payments that depend on an index or a rate (such as the Consumer Price Index or a market interest rate), the payment should be
A53: initially measured using the index or rate published as of the start of the subscription term.
A54: iv - EXCLUDE any variable usage fees and/or support/maintenance service fees included in the payment (see #24 & 25 in Data Input tab)
A55: b - If payments escalate over time, list the beginning payment amount (col B) & # of payments to be paid at that amount (col C), then
A56: move to line #2 and list the next payment amount & # of payments at that amount, etc.
A57: c - If an extension is deemed Reasonably Certain to be exercised, but the amount is listed as "negotiable", then use the fixed
A58: payment amount just prior to the date of extension for those unknown amounts.
A59: d - If there is an Abated or Free Rent period (skipped payment) indicated in the SBITA contract, | C59: Desc of Lease Incentives
A60: indicate that with a $0 payment amount (col B) & the number of payments to be skipped (col C). | C60: ='Data Input'!C139 -> 0
A61: Make sure to put these skipped payments in the correct order chronologically. For example, if there
A62: is a skipped payment for payment 13, list the first 12 payments on the first line, then list line #2 as
A63: $0 (col B) and 1 (col C), then line #3 as the continuing payments after the skipped payment.
A64: e - If a Bonus payment from the SBITA Vendor is included in the contract, subtract that amount from the payment closest to the proper
A65: chronological period (as described in d above). This may cause that payment amount to be negative.
A66: f - If payments are Less Often than Annually,indicate this in the Payment Schedule above by listing the 1st payment on the 1st row & a 1 in
A67: col C, then the 2nd row should show how many years to be skipped in col C ($0 in col B), then the 3rd row will show the 2nd payment.
A68: Repeat until all payments & all years are represented in the Payment Schdl (total in col C should tie to total yrs of subscription term in
A69: cell B4).
A70: g - Use the Teal box below to add any extra details, how payments change over time (For example, (a) Payment increases 5% every 10 yrs;
A71: (b) Payment recalculated every 5 yrs based on CPI, etc.), or describe payment frequency if Less Often than Annually.
A75: h - If there are not enough lines in the Payment Schedule above, use the table below to input the additional payment amounts, and the
A76: totals from the additional table will automatically be added to the Payment Schedule above. Contact the GAAP Group if you need more
A77: than 25 lines.
A78: i - Verify that the total # of payments in cell B4 is the same as the sum of col C (cell C16).
A80: Additional Subscription Payment Lines (if needed) | B80: Amount | C80: # of Payments
A81: Payment Amount #5 & # of Payments at this amount | B81: 0 | C81: 0
A82: Payment Amount #6 & # of Payments at this amount | B82: 0 | C82: 0
A83: Payment Amount #7 & # of Payments at this amount | B83: 0 | C83: 0
A84: Payment Amount #8 & # of Payments at this amount | B84: 0 | C84: 0
A85: Payment Amount #9 & # of Payments at this amount | B85: 0 | C85: 0
A86: Payment Amount #10 & # of Payments at this amount | B86: 0 | C86: 0
A87: Payment Amount #11 & # of Payments at this amount | B87: 0 | C87: 0
A88: Payment Amount #12 & # of Payments at this amount | B88: 0 | C88: 0
A89: Payment Amount #13 & # of Payments at this amount | B89: 0 | C89: 0
A90: Payment Amount #14 & # of Payments at this amount | B90: 0 | C90: 0
A91: Payment Amount #15 & # of Payments at this amount | B91: 0 | C91: 0
A92: Payment Amount #16 & # of Payments at this amount | B92: 0 | C92: 0
A93: Payment Amount #17 & # of Payments at this amount | B93: 0 | C93: 0
A94: Payment Amount #18 & # of Payments at this amount | B94: 0 | C94: 0
A95: Payment Amount #19 & # of Payments at this amount | B95: 0 | C95: 0
A96: Payment Amount #20 & # of Payments at this amount | B96: 0 | C96: 0
A97: Payment Amount #21 & # of Payments at this amount | B97: 0 | C97: 0
A98: Payment Amount #22 & # of Payments at this amount | B98: 0 | C98: 0
A99: Payment Amount #23 & # of Payments at this amount | B99: 0 | C99: 0
A100: Payment Amount #24 & # of Payments at this amount | B100: 0 | C100: 0
A101: Payment Amount #25 & # of Payments at this amount | B101: 0 | C101: 0
A102: Total Add'l Subscription Payments (will automatically be added to the Schdl above) | B102: =(B81*C81)+(B82*C82)+(B83*C83)+(B84*C84)+(B85*C85)+(B86*C86)+(B87*C87)+(B88*C88)+(B89*C89)+(B90*C90)+(B91*C91)+(B92*C92)+(B93*C93)+(B94*C94)+(B95*C95)+(B96*C96)+(B97*C97)+(B98*C98)+(B99*C99)+(B100*C100)+(B101*C101) -> 0 | C102: =SUM(C81:C101) -> 0
A105: Step 2 - Fill out the "Other Payment Considerations" section (starting on row 18) ONLY if instructed to do so on the Data Input tab
A106: The Termination Penalty line should only have an amount listed if a termination clause is deemed Reasonably Certain to be exercised
A107: based on decisions by the Agency (response from the Data Input tab is shown in col C) AND this termination will cause a Penalty to be due.
A109: Steps 3 - 8 are OPTIONAL (calculation of Present Value and Amortization Tables)
A110: Step 3 - Click the Macro button below to Generate the first 2 columns of the Present Value (PV) Table.
A113: Step 4 - Using the Payment Schedule filled out in Steps 1 & 2, fill in the Payment Amounts into col F of the PV Table.
A114: a - If there are 12 payments for the 1st payment amount, and 6 payments for the 2nd payment amount, list the 1st amount in the
A115: first 12 rows of the Table, then the 2nd amount for the next 6 rows, and do the same for the remaining payment amounts listed
A116: in the Payment Schedule until all the payments are filled in on the Table.
A117: b - Make sure not to miss any Skipped Payment periods. If the Payment Schedule indicates the 13th payment is $0, then row 13 of the
A118: Table should be $0, same as the Payment Schedule.
A119: c - If there are any amounts listed for "Other Payment Considerations", add it to the final payment. For example, if the final
A120: payment is $20,000, and there is a Termination Penalty listed for $50,000, then the final payment in the Table should be $70,000.
A121: d - Check to make sure that the sum of all the payments entered into col F of the Table is the same as the Total Undiscounted Cash
A122: Flows in cell B22.
A124: Step 5 - Click the Macro button below to Calculate Net Present Value and Generate the PV and Amortization Tables.
A128: Step 6 - Check data for accuracy:
A129: a - Check the date of the final payment in the Amortization Table and compare to Subscription End Date in cell B8. Make sure the final
A130: payment date is reasonable in comparison to the subscription End Date (within same month if payments are Monthly, within the final
A131: quarter if Quarterly, etc).
A132: b - If payments change (there are amounts in Payment Amount #2 + rows), then check the dates the amounts change in the
A133: Amort Table (col K & M) to make sure the payments change on the correct dates as per the SBITA Contract.
A134: c - If 6a and 6b are BOTH correct, skip to Step 8 (Do NOT click the Start Over Macro Button).
A135: d - If 6a or 6b does not appear to be correct:
A136: i - Double-check the Instructions above (Steps 1 - 6), including the check for # of payments in 1i & check for Table payments in 4d.
A137: ii - Double-check cells B2-B8 by reviewing the SBITA Contract. These cells automatically filled based on answers in the Data Input
A138: tab. Make any necessary corrections in the Data Input tab (NOT in cells B2-B8) - the corresponding question #s are referenced above.
A139: iii - Double-Check the Payment Schedule and Other Payment Considerations sections. Compare back to the SBITA contract to
A140: verify, and correct as necessary.
A141: e - Once corrections have been made, click the Macro button below to Delete the PV & Amortization Tables.
A145: Step 7 - Repeat Steps 3-6 as needed until all checks (1i, 4d, 6a, 6b, and 6di-6diii) are correct.
A147: Step 8 - See Net Present Value calculated in cell B25 for the SBITA Liability and the SBITA Asset Cost in cell B34.
A148: Also, see Present Value Table in columns E-G,
A149: and Amortization Table in columns J-P.
A150: Note: If Implementation Period is not yet complete, then only a Development in Process Asset will be recognized at this point (cell B34 will
A151: return a value of "Not yet determined" if implementation is still in process & will also be noted as "Development in Process" in cell C31).
A152: The SBITA Liability & SBITA Asset will not be recognized until the SBITA is Put Into Service/Go-Live Date. If this is the case, please continue
A153: to track all Implementation Costs. This info will be requested in the following year's Closing Package Activity Form.
A155: Please DO NOT add SBITA implementation costs into the AZ360 Fixed Assets System. This will be done manually as the SBITA Asset
A156: includes not only the implementation costs, but also the Present Value of the Subscription Fixed Payments (Liability).

Sheet SBITA 2 - PV Calc
A1: Present Value Calculations tab - SBITA # 2 (column D) | B1: Contract # | C1: ='Data Input'!D35 -> 0
A2: Periodic Interest Rate (Section VI, #28-29 from Data Input tab) | B2: ='Data Input'!D156 -> 0
A3: Cash Flows at Beginning or End (Section IV, #21) | B3: ='Data Input'!D108 -> 0 | C3: Important:
A4: Number of payments (Section IV, #20) | B4: ='Data Input'!D105 -> 0 | C4: Do not insert/delete/move
A5: Frequency of payments (Section IV, #19) | B5: ='Data Input'!D101 -> 0 | C5: cells B2:B8
A6: Date of first payment (Section IV, #22) | B6: ='Data Input'!D112 -> 00:00:00 | C6: (macros depend on them)
A7: Date Put Into Service/Go-Live Date (#14 from Data Input tab) | B7: ='Data Input'!D87 -> 00:00:00
A8: Subscription End Date including Extensions (Section IV, #17) | B8: ='Data Input'!D96 -> 1900-01-30
A10: Fixed Subscription Payment Schedule (Section V, #23 & see instructions below): | B10: Amount | C10: # of Payments
A11: Payment Amount #1 & # of Payments at this amount | B11: 0 | C11: 0
A12: Payment Amount #2 & # of Payments at this amount | B12: 0 | C12: 0
A13: Payment Amount #3 & # of Payments at this amount | B13: 0 | C13: 0
A14: Payment Amount #4 & # of Payments at this amount | B14: 0 | C14: 0
A15: Totals from add'l table below (if needed) | B15: =B102 -> 0 | C15: =C102 -> 0
A16: Total Subscription Payments (sum of all payment amounts * # of payments) | B16: =(B11*C11)+(B12*C12)+(B13*C13)+(B14*C14)+(B15) -> 0 | C16: =SUM(C11:C15) -> 0
A18: Other Payment Considerations: | C18: Answer per Data Input Tab
A19: Termination Penalty (Section V, #26) | B19: 0 | C19: ='Data Input'!D133 -> 0
A21: Total Other Payment Considerations | B21: =SUM(B19:B20) -> 0
A22: Total Undiscounted Cash Flows (Total Payments + Other Considerations) | B22: =B16+B21 -> 0
C24: Important:
A25: Liability Net Present Value (calculated after Macros below run) | B25: =SUM(G:G) -> 0 | C25: Do not insert/delete/move
C26: NPV must be cell B25
C27: (macros depend on it)
A28: Asset Adjustments (from Asset Adj tab): | B28: Asset Adj Amount
A29: Total Asset Adjustments during Current Year | B29: ='Asset Adj'!D124 -> 0
A30: EXPECTED Future Asset Adjustments (if there is an amt here, s/b DIP) | B30: ='Asset Adj'!D125 -> 0 | C30: DIP or Final?
A31: Total Asset Adjustment | B31: =SUM(B29:B30) -> 0 | C31: ='Asset Adj'!D127 -> FINAL Adj Amount
A34: Software Subscription Asset Cost (calculated after Macros below run) | B34: =IF(C31="FINAL Adj Amount",B25+B31,"Not yet determined") -> 0
A36: The Agency is not required to calculate the Present Value and/or enable Macros,
A37: but Steps 1 & 2 of the instructions below are REQUIRED to be completed.
A38: After completing Steps 1 & 2, if desired to calculate the Present Value, complete Steps 3 - 8:
A40: Note 1: First make sure your Excel settings are correct - | B40: See How to Enable Macros tab
A41: Note 2: Please do not Insert, Delete, or Move any cells, columns or rows as this could cause the Macros to fail.
A42: Note 3: The Teal Cells in columns B & C are for manual input, and the Present Value Table will need to be adjusted in column F.
A43: The Orange cells in columns B & C will automatically fill. The Present Value and Amortization Tables will be generated with the
A44: Macro buttons. Please do not make changes to the orange cells or anywhere within the Tables (except column F).
A46: Step 1 - Fill out the "Fixed Subscription Payment Schedule" above (starting on row 10).
A47: a - To calculate the Fixed Subscription Payment:
A48: i - Start with the fixed subscription periodic payments stated in the contract.
A49: ii - In addition, add "Fixed In-Substance Fees" to the above amount. "Fixed In-Substance Fees" are the Minimum Usage Costs of a variable
A50: usage fee. For Example, if a subscription includes up to 5 gigs of data used for a set fee, but charges extra for every additional gig, the
A51: minimum fee for the first 5 gigs is the "Fixed In-Substance Fee", and the per gig fees above that minimum would be the variable fees.
A52: iii - For payments that depend on an index or a rate (such as the Consumer Price Index or a market interest rate), the payment should be
A53: initially measured using the index or rate published as of the start of the subscription term.
A54: iv - EXCLUDE any variable usage fees and/or support/maintenance service fees included in the payment (see #24 & 25 in Data Input tab)
A55: b - If payments escalate over time, list the beginning payment amount (col B) & # of payments to be paid at that amount (col C), then
A56: move to line #2 and list the next payment amount & # of payments at that amount, etc.
A57: c - If an extension is deemed Reasonably Certain to be exercised, but the amount is listed as "negotiable", then use the fixed
A58: payment amount just prior to the date of extension for those unknown amounts.
A59: d - If there is an Abated or Free Rent period (skipped payment) indicated in the SBITA contract, | C59: Desc of Lease Incentives
A60: indicate that with a $0 payment amount (col B) & the number of payments to be skipped (col C). | C60: ='Data Input'!D139 -> 0
A61: Make sure to put these skipped payments in the correct order chronologically. For example, if there
A62: is a skipped payment for payment 13, list the first 12 payments on the first line, then list line #2 as
A63: $0 (col B) and 1 (col C), then line #3 as the continuing payments after the skipped payment.
A64: e - If a Bonus payment from the SBITA Vendor is included in the contract, subtract that amount from the payment closest to the proper
A65: chronological period (as described in d above). This may cause that payment amount to be negative.
A66: f - If payments are Less Often than Annually,indicate this in the Payment Schedule above by listing the 1st payment on the 1st row & a 1 in
A67: col C, then the 2nd row should show how many years to be skipped in col C ($0 in col B), then the 3rd row will show the 2nd payment.
A68: Repeat until all payments & all years are represented in the Payment Schdl (total in col C should tie to total yrs of subscription term in
A69: cell B4).
A70: g - Use the Teal box below to add any extra details, how payments change over time (For example, (a) Payment increases 5% every 10 yrs;
A71: (b) Payment recalculated every 5 yrs based on CPI, etc.), or describe payment frequency if Less Often than Annually.
A75: h - If there are not enough lines in the Payment Schedule above, use the table below to input the additional payment amounts, and the
A76: totals from the additional table will automatically be added to the Payment Schedule above. Contact the GAAP Group if you need more
A77: than 25 lines.
A78: i - Verify that the total # of payments in cell B4 is the same as the sum of col C (cell C16).
A80: Additional Subscription Payment Lines (if needed) | B80: Amount | C80: # of Payments
A81: Payment Amount #5 & # of Payments at this amount | B81: 0 | C81: 0
A82: Payment Amount #6 & # of Payments at this amount | B82: 0 | C82: 0
A83: Payment Amount #7 & # of Payments at this amount | B83: 0 | C83: 0
A84: Payment Amount #8 & # of Payments at this amount | B84: 0 | C84: 0
A85: Payment Amount #9 & # of Payments at this amount | B85: 0 | C85: 0
A86: Payment Amount #10 & # of Payments at this amount | B86: 0 | C86: 0
A87: Payment Amount #11 & # of Payments at this amount | B87: 0 | C87: 0
A88: Payment Amount #12 & # of Payments at this amount | B88: 0 | C88: 0
A89: Payment Amount #13 & # of Payments at this amount | B89: 0 | C89: 0
A90: Payment Amount #14 & # of Payments at this amount | B90: 0 | C90: 0
A91: Payment Amount #15 & # of Payments at this amount | B91: 0 | C91: 0
A92: Payment Amount #16 & # of Payments at this amount | B92: 0 | C92: 0
A93: Payment Amount #17 & # of Payments at this amount | B93: 0 | C93: 0
A94: Payment Amount #18 & # of Payments at this amount | B94: 0 | C94: 0
A95: Payment Amount #19 & # of Payments at this amount | B95: 0 | C95: 0
A96: Payment Amount #20 & # of Payments at this amount | B96: 0 | C96: 0
A97: Payment Amount #21 & # of Payments at this amount | B97: 0 | C97: 0
A98: Payment Amount #22 & # of Payments at this amount | B98: 0 | C98: 0
A99: Payment Amount #23 & # of Payments at this amount | B99: 0 | C99: 0
A100: Payment Amount #24 & # of Payments at this amount | B100: 0 | C100: 0
A101: Payment Amount #25 & # of Payments at this amount | B101: 0 | C101: 0
A102: Total Add'l Subscription Payments (will automatically be added to the Schdl above) | B102: =(B81*C81)+(B82*C82)+(B83*C83)+(B84*C84)+(B85*C85)+(B86*C86)+(B87*C87)+(B88*C88)+(B89*C89)+(B90*C90)+(B91*C91)+(B92*C92)+(B93*C93)+(B94*C94)+(B95*C95)+(B96*C96)+(B97*C97)+(B98*C98)+(B99*C99)+(B100*C100)+(B101*C101) -> 0 | C102: =SUM(C81:C101) -> 0
A105: Step 2 - Fill out the "Other Payment Considerations" section (starting on row 18) ONLY if instructed to do so on the Data Input tab
A106: The Termination Penalty line should only have an amount listed if a termination clause is deemed Reasonably Certain to be exercised
A107: based on decisions by the Agency (response from the Data Input tab is shown in col C) AND this termination will cause a Penalty to be due.
A109: Steps 3 - 8 are OPTIONAL (calculation of Present Value and Amortization Tables)
A110: Step 3 - Click the Macro button below to Generate the first 2 columns of the Present Value (PV) Table.
A113: Step 4 - Using the Payment Schedule filled out in Steps 1 & 2, fill in the Payment Amounts into col F of the PV Table.
A114: a - If there are 12 payments for the 1st payment amount, and 6 payments for the 2nd payment amount, list the 1st amount in the
A115: first 12 rows of the Table, then the 2nd amount for the next 6 rows, and do the same for the remaining payment amounts listed
A116: in the Payment Schedule until all the payments are filled in on the Table.
A117: b - Make sure not to miss any Skipped Payment periods. If the Payment Schedule indicates the 13th payment is $0, then row 13 of the
A118: Table should be $0, same as the Payment Schedule.
A119: c - If there are any amounts listed for "Other Payment Considerations", add it to the final payment. For example, if the final
A120: payment is $20,000, and there is a Termination Penalty listed for $50,000, then the final payment in the Table should be $70,000.
A121: d - Check to make sure that the sum of all the payments entered into col F of the Table is the same as the Total Undiscounted Cash
A122: Flows in cell B22.
A124: Step 5 - Click the Macro button below to Calculate Net Present Value and Generate the PV and Amortization Tables.
A128: Step 6 - Check data for accuracy:
A129: a - Check the date of the final payment in the Amortization Table and compare to Subscription End Date in cell B8. Make sure the final
A130: payment date is reasonable in comparison to the subscription End Date (within same month if payments are Monthly, within the final
A131: quarter if Quarterly, etc).
A132: b - If payments change (there are amounts in Payment Amount #2 + rows), then check the dates the amounts change in the
A133: Amort Table (col K & M) to make sure the payments change on the correct dates as per the SBITA Contract.
A134: c - If 6a and 6b are BOTH correct, skip to Step 8 (Do NOT click the Start Over Macro Button).
A135: d - If 6a or 6b does not appear to be correct:
A136: i - Double-check the Instructions above (Steps 1 - 6), including the check for # of payments in 1i & check for Table payments in 4d.
A137: ii - Double-check cells B2-B8 by reviewing the SBITA Contract. These cells automatically filled based on answers in the Data Input
A138: tab. Make any necessary corrections in the Data Input tab (NOT in cells B2-B8) - the corresponding question #s are referenced above.
A139: iii - Double-Check the Payment Schedule and Other Payment Considerations sections. Compare back to the SBITA contract to
A140: verify, and correct as necessary.
A141: e - Once corrections have been made, click the Macro button below to Delete the PV & Amortization Tables.
A145: Step 7 - Repeat Steps 3-6 as needed until all checks (1i, 4d, 6a, 6b, and 6di-6diii) are correct.
A147: Step 8 - See Net Present Value calculated in cell B25 for the SBITA Liability and the SBITA Asset Cost in cell B34.
A148: Also, see Present Value Table in columns E-G,
A149: and Amortization Table in columns J-P.
A150: Note: If Implementation Period is not yet complete, then only a Development in Process Asset will be recognized at this point (cell B34 will
A151: return a value of "Not yet determined" if implementation is still in process & will also be noted as "Development in Process" in cell C31).
A152: The SBITA Liability & SBITA Asset will not be recognized until the SBITA is Put Into Service/Go-Live Date. If this is the case, please continue
A153: to track all Implementation Costs. This info will be requested in the following year's Closing Package Activity Form.
A155: Please DO NOT add SBITA implementation costs into the AZ360 Fixed Assets System. This will be done manually as the SBITA Asset
A156: includes not only the implementation costs, but also the Present Value of the Subscription Fixed Payments (Liability).

Sheet SBITA 3 - PV Calc
A1: Present Value Calculations tab - SBITA # 3 (column E) | B1: Contract # | C1: ='Data Input'!E35 -> 0
A2: Periodic Interest Rate (Section VI, #28-29 from Data Input tab) | B2: ='Data Input'!E156 -> 0
A3: Cash Flows at Beginning or End (Section IV, #21) | B3: ='Data Input'!E108 -> 0 | C3: Important:
A4: Number of payments (Section IV, #20) | B4: ='Data Input'!E105 -> 0 | C4: Do not insert/delete/move
A5: Frequency of payments (Section IV, #19) | B5: ='Data Input'!E101 -> 0 | C5: cells B2:B8
A6: Date of first payment (Section IV, #22) | B6: ='Data Input'!E112 -> 00:00:00 | C6: (macros depend on them)
A7: Date Put Into Service/Go-Live Date (#14 from Data Input tab) | B7: ='Data Input'!E87 -> 00:00:00
A8: Subscription End Date including Extensions (Section IV, #17) | B8: ='Data Input'!E96 -> 1900-01-30
A10: Fixed Subscription Payment Schedule (Section V, #23 & see instructions below): | B10: Amount | C10: # of Payments
A11: Payment Amount #1 & # of Payments at this amount | B11: 0 | C11: 0
A12: Payment Amount #2 & # of Payments at this amount | B12: 0 | C12: 0
A13: Payment Amount #3 & # of Payments at this amount | B13: 0 | C13: 0
A14: Payment Amount #4 & # of Payments at this amount | B14: 0 | C14: 0
A15: Totals from add'l table below (if needed) | B15: =B102 -> 0 | C15: =C102 -> 0
A16: Total Subscription Payments (sum of all payment amounts * # of payments) | B16: =(B11*C11)+(B12*C12)+(B13*C13)+(B14*C14)+(B15) -> 0 | C16: =SUM(C11:C15) -> 0
A18: Other Payment Considerations: | C18: Answer per Data Input Tab
A19: Termination Penalty (Section V, #26) | B19: 0 | C19: ='Data Input'!E133 -> 0
A21: Total Other Payment Considerations | B21: =SUM(B19:B20) -> 0
A22: Total Undiscounted Cash Flows (Total Payments + Other Considerations) | B22: =B16+B21 -> 0
C24: Important:
A25: Liability Net Present Value (calculated after Macros below run) | B25: =SUM(G:G) -> 0 | C25: Do not insert/delete/move
C26: NPV must be cell B25
C27: (macros depend on it)
A28: Asset Adjustments (from Asset Adj tab): | B28: Asset Adj Amount
A29: Total Asset Adjustments during Current Year | B29: ='Asset Adj'!E124 -> 0
A30: EXPECTED Future Asset Adjustments (if there is an amt here, s/b DIP) | B30: ='Asset Adj'!E125 -> 0 | C30: DIP or Final?
A31: Total Asset Adjustment | B31: =SUM(B29:B30) -> 0 | C31: ='Asset Adj'!E127 -> FINAL Adj Amount
A34: Software Subscription Asset Cost (calculated after Macros below run) | B34: =IF(C31="FINAL Adj Amount",B25+B31,"Not yet determined") -> 0
A36: The Agency is not required to calculate the Present Value and/or enable Macros,
A37: but Steps 1 & 2 of the instructions below are REQUIRED to be completed.
A38: After completing Steps 1 & 2, if desired to calculate the Present Value, complete Steps 3 - 8:
A40: Note 1: First make sure your Excel settings are correct - | B40: See How to Enable Macros tab
A41: Note 2: Please do not Insert, Delete, or Move any cells, columns or rows as this could cause the Macros to fail.
A42: Note 3: The Teal Cells in columns B & C are for manual input, and the Present Value Table will need to be adjusted in column F.
A43: The Orange cells in columns B & C will automatically fill. The Present Value and Amortization Tables will be generated with the
A44: Macro buttons. Please do not make changes to the orange cells or anywhere within the Tables (except column F).
A46: Step 1 - Fill out the "Fixed Subscription Payment Schedule" above (starting on row 10).
A47: a - To calculate the Fixed Subscription Payment:
A48: i - Start with the fixed subscription periodic payments stated in the contract.
A49: ii - In addition, add "Fixed In-Substance Fees" to the above amount. "Fixed In-Substance Fees" are the Minimum Usage Costs of a variable
A50: usage fee. For Example, if a subscription includes up to 5 gigs of data used for a set fee, but charges extra for every additional gig, the
A51: minimum fee for the first 5 gigs is the "Fixed In-Substance Fee", and the per gig fees above that minimum would be the variable fees.
A52: iii - For payments that depend on an index or a rate (such as the Consumer Price Index or a market interest rate), the payment should be
A53: initially measured using the index or rate published as of the start of the subscription term.
A54: iv - EXCLUDE any variable usage fees and/or support/maintenance service fees included in the payment (see #24 & 25 in Data Input tab)
A55: b - If payments escalate over time, list the beginning payment amount (col B) & # of payments to be paid at that amount (col C), then
A56: move to line #2 and list the next payment amount & # of payments at that amount, etc.
A57: c - If an extension is deemed Reasonably Certain to be exercised, but the amount is listed as "negotiable", then use the fixed
A58: payment amount just prior to the date of extension for those unknown amounts.
A59: d - If there is an Abated or Free Rent period (skipped payment) indicated in the SBITA contract, | C59: Desc of Lease Incentives
A60: indicate that with a $0 payment amount (col B) & the number of payments to be skipped (col C). | C60: ='Data Input'!E139 -> 0
A61: Make sure to put these skipped payments in the correct order chronologically. For example, if there
A62: is a skipped payment for payment 13, list the first 12 payments on the first line, then list line #2 as
A63: $0 (col B) and 1 (col C), then line #3 as the continuing payments after the skipped payment.
A64: e - If a Bonus payment from the SBITA Vendor is included in the contract, subtract that amount from the payment closest to the proper
A65: chronological period (as described in d above). This may cause that payment amount to be negative.
A66: f - If payments are Less Often than Annually,indicate this in the Payment Schedule above by listing the 1st payment on the 1st row & a 1 in
A67: col C, then the 2nd row should show how many years to be skipped in col C ($0 in col B), then the 3rd row will show the 2nd payment.
A68: Repeat until all payments & all years are represented in the Payment Schdl (total in col C should tie to total yrs of subscription term in
A69: cell B4).
A70: g - Use the Teal box below to add any extra details, how payments change over time (For example, (a) Payment increases 5% every 10 yrs;
A71: (b) Payment recalculated every 5 yrs based on CPI, etc.), or describe payment frequency if Less Often than Annually.
A75: h - If there are not enough lines in the Payment Schedule above, use the table below to input the additional payment amounts, and the
A76: totals from the additional table will automatically be added to the Payment Schedule above. Contact the GAAP Group if you need more
A77: than 25 lines.
A78: i - Verify that the total # of payments in cell B4 is the same as the sum of col C (cell C16).
A80: Additional Subscription Payment Lines (if needed) | B80: Amount | C80: # of Payments
A81: Payment Amount #5 & # of Payments at this amount | B81: 0 | C81: 0
A82: Payment Amount #6 & # of Payments at this amount | B82: 0 | C82: 0
A83: Payment Amount #7 & # of Payments at this amount | B83: 0 | C83: 0
A84: Payment Amount #8 & # of Payments at this amount | B84: 0 | C84: 0
A85: Payment Amount #9 & # of Payments at this amount | B85: 0 | C85: 0
A86: Payment Amount #10 & # of Payments at this amount | B86: 0 | C86: 0
A87: Payment Amount #11 & # of Payments at this amount | B87: 0 | C87: 0
A88: Payment Amount #12 & # of Payments at this amount | B88: 0 | C88: 0
A89: Payment Amount #13 & # of Payments at this amount | B89: 0 | C89: 0
A90: Payment Amount #14 & # of Payments at this amount | B90: 0 | C90: 0
A91: Payment Amount #15 & # of Payments at this amount | B91: 0 | C91: 0
A92: Payment Amount #16 & # of Payments at this amount | B92: 0 | C92: 0
A93: Payment Amount #17 & # of Payments at this amount | B93: 0 | C93: 0
A94: Payment Amount #18 & # of Payments at this amount | B94: 0 | C94: 0
A95: Payment Amount #19 & # of Payments at this amount | B95: 0 | C95: 0
A96: Payment Amount #20 & # of Payments at this amount | B96: 0 | C96: 0
A97: Payment Amount #21 & # of Payments at this amount | B97: 0 | C97: 0
A98: Payment Amount #22 & # of Payments at this amount | B98: 0 | C98: 0
A99: Payment Amount #23 & # of Payments at this amount | B99: 0 | C99: 0
A100: Payment Amount #24 & # of Payments at this amount | B100: 0 | C100: 0
A101: Payment Amount #25 & # of Payments at this amount | B101: 0 | C101: 0
A102: Total Add'l Subscription Payments (will automatically be added to the Schdl above) | B102: =(B81*C81)+(B82*C82)+(B83*C83)+(B84*C84)+(B85*C85)+(B86*C86)+(B87*C87)+(B88*C88)+(B89*C89)+(B90*C90)+(B91*C91)+(B92*C92)+(B93*C93)+(B94*C94)+(B95*C95)+(B96*C96)+(B97*C97)+(B98*C98)+(B99*C99)+(B100*C100)+(B101*C101) -> 0 | C102: =SUM(C81:C101) -> 0
A105: Step 2 - Fill out the "Other Payment Considerations" section (starting on row 18) ONLY if instructed to do so on the Data Input tab
A106: The Termination Penalty line should only have an amount listed if a termination clause is deemed Reasonably Certain to be exercised
A107: based on decisions by the Agency (response from the Data Input tab is shown in col C) AND this termination will cause a Penalty to be due.
A109: Steps 3 - 8 are OPTIONAL (calculation of Present Value and Amortization Tables)
A110: Step 3 - Click the Macro button below to Generate the first 2 columns of the Present Value (PV) Table.
A113: Step 4 - Using the Payment Schedule filled out in Steps 1 & 2, fill in the Payment Amounts into col F of the PV Table.
A114: a - If there are 12 payments for the 1st payment amount, and 6 payments for the 2nd payment amount, list the 1st amount in the
A115: first 12 rows of the Table, then the 2nd amount for the next 6 rows, and do the same for the remaining payment amounts listed
A116: in the Payment Schedule until all the payments are filled in on the Table.
A117: b - Make sure not to miss any Skipped Payment periods. If the Payment Schedule indicates the 13th payment is $0, then row 13 of the
A118: Table should be $0, same as the Payment Schedule.
A119: c - If there are any amounts listed for "Other Payment Considerations", add it to the final payment. For example, if the final
A120: payment is $20,000, and there is a Termination Penalty listed for $50,000, then the final payment in the Table should be $70,000.
A121: d - Check to make sure that the sum of all the payments entered into col F of the Table is the same as the Total Undiscounted Cash
A122: Flows in cell B22.
A124: Step 5 - Click the Macro button below to Calculate Net Present Value and Generate the PV and Amortization Tables.
A128: Step 6 - Check data for accuracy:
A129: a - Check the date of the final payment in the Amortization Table and compare to Subscription End Date in cell B8. Make sure the final
A130: payment date is reasonable in comparison to the subscription End Date (within same month if payments are Monthly, within the final
A131: quarter if Quarterly, etc).
A132: b - If payments change (there are amounts in Payment Amount #2 + rows), then check the dates the amounts change in the
A133: Amort Table (col K & M) to make sure the payments change on the correct dates as per the SBITA Contract.
A134: c - If 6a and 6b are BOTH correct, skip to Step 8 (Do NOT click the Start Over Macro Button).
A135: d - If 6a or 6b does not appear to be correct:
A136: i - Double-check the Instructions above (Steps 1 - 6), including the check for # of payments in 1i & check for Table payments in 4d.
A137: ii - Double-check cells B2-B8 by reviewing the SBITA Contract. These cells automatically filled based on answers in the Data Input
A138: tab. Make any necessary corrections in the Data Input tab (NOT in cells B2-B8) - the corresponding question #s are referenced above.
A139: iii - Double-Check the Payment Schedule and Other Payment Considerations sections. Compare back to the SBITA contract to
A140: verify, and correct as necessary.
A141: e - Once corrections have been made, click the Macro button below to Delete the PV & Amortization Tables.
A145: Step 7 - Repeat Steps 3-6 as needed until all checks (1i, 4d, 6a, 6b, and 6di-6diii) are correct.
A147: Step 8 - See Net Present Value calculated in cell B25 for the SBITA Liability and the SBITA Asset Cost in cell B34.
A148: Also, see Present Value Table in columns E-G,
A149: and Amortization Table in columns J-P.
A150: Note: If Implementation Period is not yet complete, then only a Development in Process Asset will be recognized at this point (cell B34 will
A151: return a value of "Not yet determined" if implementation is still in process & will also be noted as "Development in Process" in cell C31).
A152: The SBITA Liability & SBITA Asset will not be recognized until the SBITA is Put Into Service/Go-Live Date. If this is the case, please continue
A153: to track all Implementation Costs. This info will be requested in the following year's Closing Package Activity Form.
A155: Please DO NOT add SBITA implementation costs into the AZ360 Fixed Assets System. This will be done manually as the SBITA Asset
A156: includes not only the implementation costs, but also the Present Value of the Subscription Fixed Payments (Liability).

Sheet SBITA 4 - PV Calc
A1: Present Value Calculations tab - SBITA # 4 (column F) | B1: Contract # | C1: ='Data Input'!F35 -> 0
A2: Periodic Interest Rate (Section VI, #28-29 from Data Input tab) | B2: ='Data Input'!F156 -> 0
A3: Cash Flows at Beginning or End (Section IV, #21) | B3: ='Data Input'!F108 -> 0 | C3: Important:
A4: Number of payments (Section IV, #20) | B4: ='Data Input'!F105 -> 0 | C4: Do not insert/delete/move
A5: Frequency of payments (Section IV, #19) | B5: ='Data Input'!F101 -> 0 | C5: cells B2:B8
A6: Date of first payment (Section IV, #22) | B6: ='Data Input'!F112 -> 00:00:00 | C6: (macros depend on them)
A7: Date Put Into Service/Go-Live Date (#14 from Data Input tab) | B7: ='Data Input'!F87 -> 00:00:00
A8: Subscription End Date including Extensions (Section IV, #17) | B8: ='Data Input'!F96 -> 1900-01-30
A10: Fixed Subscription Payment Schedule (Section V, #23 & see instructions below): | B10: Amount | C10: # of Payments
A11: Payment Amount #1 & # of Payments at this amount | B11: 0 | C11: 0
A12: Payment Amount #2 & # of Payments at this amount | B12: 0 | C12: 0
A13: Payment Amount #3 & # of Payments at this amount | B13: 0 | C13: 0
A14: Payment Amount #4 & # of Payments at this amount | B14: 0 | C14: 0
A15: Totals from add'l table below (if needed) | B15: =B102 -> 0 | C15: =C102 -> 0
A16: Total Subscription Payments (sum of all payment amounts * # of payments) | B16: =(B11*C11)+(B12*C12)+(B13*C13)+(B14*C14)+(B15) -> 0 | C16: =SUM(C11:C15) -> 0
A18: Other Payment Considerations: | C18: Answer per Data Input Tab
A19: Termination Penalty (Section V, #26) | B19: 0 | C19: ='Data Input'!F133 -> 0
A21: Total Other Payment Considerations | B21: =SUM(B19:B20) -> 0
A22: Total Undiscounted Cash Flows (Total Payments + Other Considerations) | B22: =B16+B21 -> 0
C24: Important:
A25: Liability Net Present Value (calculated after Macros below run) | B25: =SUM(G:G) -> 0 | C25: Do not insert/delete/move
C26: NPV must be cell B25
C27: (macros depend on it)
A28: Asset Adjustments (from Asset Adj tab): | B28: Asset Adj Amount
A29: Total Asset Adjustments during Current Year | B29: ='Asset Adj'!F124 -> 0
A30: EXPECTED Future Asset Adjustments (if there is an amt here, s/b DIP) | B30: ='Asset Adj'!F125 -> 0 | C30: DIP or Final?
A31: Total Asset Adjustment | B31: =SUM(B29:B30) -> 0 | C31: ='Asset Adj'!F127 -> FINAL Adj Amount
A34: Software Subscription Asset Cost (calculated after Macros below run) | B34: =IF(C31="FINAL Adj Amount",B25+B31,"Not yet determined") -> 0
A36: The Agency is not required to calculate the Present Value and/or enable Macros,
A37: but Steps 1 & 2 of the instructions below are REQUIRED to be completed.
A38: After completing Steps 1 & 2, if desired to calculate the Present Value, complete Steps 3 - 8:
A40: Note 1: First make sure your Excel settings are correct - | B40: See How to Enable Macros tab
A41: Note 2: Please do not Insert, Delete, or Move any cells, columns or rows as this could cause the Macros to fail.
A42: Note 3: The Teal Cells in columns B & C are for manual input, and the Present Value Table will need to be adjusted in column F.
A43: The Orange cells in columns B & C will automatically fill. The Present Value and Amortization Tables will be generated with the
A44: Macro buttons. Please do not make changes to the orange cells or anywhere within the Tables (except column F).
A46: Step 1 - Fill out the "Fixed Subscription Payment Schedule" above (starting on row 10).
A47: a - To calculate the Fixed Subscription Payment:
A48: i - Start with the fixed subscription periodic payments stated in the contract.
A49: ii - In addition, add "Fixed In-Substance Fees" to the above amount. "Fixed In-Substance Fees" are the Minimum Usage Costs of a variable
A50: usage fee. For Example, if a subscription includes up to 5 gigs of data used for a set fee, but charges extra for every additional gig, the
A51: minimum fee for the first 5 gigs is the "Fixed In-Substance Fee", and the per gig fees above that minimum would be the variable fees.
A52: iii - For payments that depend on an index or a rate (such as the Consumer Price Index or a market interest rate), the payment should be
A53: initially measured using the index or rate published as of the start of the subscription term.
A54: iv - EXCLUDE any variable usage fees and/or support/maintenance service fees included in the payment (see #24 & 25 in Data Input tab)
A55: b - If payments escalate over time, list the beginning payment amount (col B) & # of payments to be paid at that amount (col C), then
A56: move to line #2 and list the next payment amount & # of payments at that amount, etc.
A57: c - If an extension is deemed Reasonably Certain to be exercised, but the amount is listed as "negotiable", then use the fixed
A58: payment amount just prior to the date of extension for those unknown amounts.
A59: d - If there is an Abated or Free Rent period (skipped payment) indicated in the SBITA contract, | C59: Desc of Lease Incentives
A60: indicate that with a $0 payment amount (col B) & the number of payments to be skipped (col C). | C60: ='Data Input'!F139 -> 0
A61: Make sure to put these skipped payments in the correct order chronologically. For example, if there
A62: is a skipped payment for payment 13, list the first 12 payments on the first line, then list line #2 as
A63: $0 (col B) and 1 (col C), then line #3 as the continuing payments after the skipped payment.
A64: e - If a Bonus payment from the SBITA Vendor is included in the contract, subtract that amount from the payment closest to the proper
A65: chronological period (as described in d above). This may cause that payment amount to be negative.
A66: f - If payments are Less Often than Annually,indicate this in the Payment Schedule above by listing the 1st payment on the 1st row & a 1 in
A67: col C, then the 2nd row should show how many years to be skipped in col C ($0 in col B), then the 3rd row will show the 2nd payment.
A68: Repeat until all payments & all years are represented in the Payment Schdl (total in col C should tie to total yrs of subscription term in
A69: cell B4).
A70: g - Use the Teal box below to add any extra details, how payments change over time (For example, (a) Payment increases 5% every 10 yrs;
A71: (b) Payment recalculated every 5 yrs based on CPI, etc.), or describe payment frequency if Less Often than Annually.
A75: h - If there are not enough lines in the Payment Schedule above, use the table below to input the additional payment amounts, and the
A76: totals from the additional table will automatically be added to the Payment Schedule above. Contact the GAAP Group if you need more
A77: than 25 lines.
A78: i - Verify that the total # of payments in cell B4 is the same as the sum of col C (cell C16).
A80: Additional Subscription Payment Lines (if needed) | B80: Amount | C80: # of Payments
A81: Payment Amount #5 & # of Payments at this amount | B81: 0 | C81: 0
A82: Payment Amount #6 & # of Payments at this amount | B82: 0 | C82: 0
A83: Payment Amount #7 & # of Payments at this amount | B83: 0 | C83: 0
A84: Payment Amount #8 & # of Payments at this amount | B84: 0 | C84: 0
A85: Payment Amount #9 & # of Payments at this amount | B85: 0 | C85: 0
A86: Payment Amount #10 & # of Payments at this amount | B86: 0 | C86: 0
A87: Payment Amount #11 & # of Payments at this amount | B87: 0 | C87: 0
A88: Payment Amount #12 & # of Payments at this amount | B88: 0 | C88: 0
A89: Payment Amount #13 & # of Payments at this amount | B89: 0 | C89: 0
A90: Payment Amount #14 & # of Payments at this amount | B90: 0 | C90: 0
A91: Payment Amount #15 & # of Payments at this amount | B91: 0 | C91: 0
A92: Payment Amount #16 & # of Payments at this amount | B92: 0 | C92: 0
A93: Payment Amount #17 & # of Payments at this amount | B93: 0 | C93: 0
A94: Payment Amount #18 & # of Payments at this amount | B94: 0 | C94: 0
A95: Payment Amount #19 & # of Payments at this amount | B95: 0 | C95: 0
A96: Payment Amount #20 & # of Payments at this amount | B96: 0 | C96: 0
A97: Payment Amount #21 & # of Payments at this amount | B97: 0 | C97: 0
A98: Payment Amount #22 & # of Payments at this amount | B98: 0 | C98: 0
A99: Payment Amount #23 & # of Payments at this amount | B99: 0 | C99: 0
A100: Payment Amount #24 & # of Payments at this amount | B100: 0 | C100: 0
A101: Payment Amount #25 & # of Payments at this amount | B101: 0 | C101: 0
A102: Total Add'l Subscription Payments (will automatically be added to the Schdl above) | B102: =(B81*C81)+(B82*C82)+(B83*C83)+(B84*C84)+(B85*C85)+(B86*C86)+(B87*C87)+(B88*C88)+(B89*C89)+(B90*C90)+(B91*C91)+(B92*C92)+(B93*C93)+(B94*C94)+(B95*C95)+(B96*C96)+(B97*C97)+(B98*C98)+(B99*C99)+(B100*C100)+(B101*C101) -> 0 | C102: =SUM(C81:C101) -> 0
A105: Step 2 - Fill out the "Other Payment Considerations" section (starting on row 18) ONLY if instructed to do so on the Data Input tab
A106: The Termination Penalty line should only have an amount listed if a termination clause is deemed Reasonably Certain to be exercised
A107: based on decisions by the Agency (response from the Data Input tab is shown in col C) AND this termination will cause a Penalty to be due.
A109: Steps 3 - 8 are OPTIONAL (calculation of Present Value and Amortization Tables)
A110: Step 3 - Click the Macro button below to Generate the first 2 columns of the Present Value (PV) Table.
A113: Step 4 - Using the Payment Schedule filled out in Steps 1 & 2, fill in the Payment Amounts into col F of the PV Table.
A114: a - If there are 12 payments for the 1st payment amount, and 6 payments for the 2nd payment amount, list the 1st amount in the
A115: first 12 rows of the Table, then the 2nd amount for the next 6 rows, and do the same for the remaining payment amounts listed
A116: in the Payment Schedule until all the payments are filled in on the Table.
A117: b - Make sure not to miss any Skipped Payment periods. If the Payment Schedule indicates the 13th payment is $0, then row 13 of the
A118: Table should be $0, same as the Payment Schedule.
A119: c - If there are any amounts listed for "Other Payment Considerations", add it to the final payment. For example, if the final
A120: payment is $20,000, and there is a Termination Penalty listed for $50,000, then the final payment in the Table should be $70,000.
A121: d - Check to make sure that the sum of all the payments entered into col F of the Table is the same as the Total Undiscounted Cash
A122: Flows in cell B22.
A124: Step 5 - Click the Macro button below to Calculate Net Present Value and Generate the PV and Amortization Tables.
A128: Step 6 - Check data for accuracy:
A129: a - Check the date of the final payment in the Amortization Table and compare to Subscription End Date in cell B8. Make sure the final
A130: payment date is reasonable in comparison to the subscription End Date (within same month if payments are Monthly, within the final
A131: quarter if Quarterly, etc).
A132: b - If payments change (there are amounts in Payment Amount #2 + rows), then check the dates the amounts change in the
A133: Amort Table (col K & M) to make sure the payments change on the correct dates as per the SBITA Contract.
A134: c - If 6a and 6b are BOTH correct, skip to Step 8 (Do NOT click the Start Over Macro Button).
A135: d - If 6a or 6b does not appear to be correct:
A136: i - Double-check the Instructions above (Steps 1 - 6), including the check for # of payments in 1i & check for Table payments in 4d.
A137: ii - Double-check cells B2-B8 by reviewing the SBITA Contract. These cells automatically filled based on answers in the Data Input
A138: tab. Make any necessary corrections in the Data Input tab (NOT in cells B2-B8) - the corresponding question #s are referenced above.
A139: iii - Double-Check the Payment Schedule and Other Payment Considerations sections. Compare back to the SBITA contract to
A140: verify, and correct as necessary.
A141: e - Once corrections have been made, click the Macro button below to Delete the PV & Amortization Tables.
A145: Step 7 - Repeat Steps 3-6 as needed until all checks (1i, 4d, 6a, 6b, and 6di-6diii) are correct.
A147: Step 8 - See Net Present Value calculated in cell B25 for the SBITA Liability and the SBITA Asset Cost in cell B34.
A148: Also, see Present Value Table in columns E-G,
A149: and Amortization Table in columns J-P.
A150: Note: If Implementation Period is not yet complete, then only a Development in Process Asset will be recognized at this point (cell B34 will
A151: return a value of "Not yet determined" if implementation is still in process & will also be noted as "Development in Process" in cell C31).
A152: The SBITA Liability & SBITA Asset will not be recognized until the SBITA is Put Into Service/Go-Live Date. If this is the case, please continue
A153: to track all Implementation Costs. This info will be requested in the following year's Closing Package Activity Form.
A155: Please DO NOT add SBITA implementation costs into the AZ360 Fixed Assets System. This will be done manually as the SBITA Asset
A156: includes not only the implementation costs, but also the Present Value of the Subscription Fixed Payments (Liability).

Sheet SBITA 5 - PV Calc
A1: Present Value Calculations tab - SBITA # 5 (column G) | B1: Contract # | C1: ='Data Input'!G35 -> 0
A2: Periodic Interest Rate (Section VI, #28-29 from Data Input tab) | B2: ='Data Input'!G156 -> 0
A3: Cash Flows at Beginning or End (Section IV, #21) | B3: ='Data Input'!G108 -> 0 | C3: Important:
A4: Number of payments (Section IV, #20) | B4: ='Data Input'!G105 -> 0 | C4: Do not insert/delete/move
A5: Frequency of payments (Section IV, #19) | B5: ='Data Input'!G101 -> 0 | C5: cells B2:B8
A6: Date of first payment (Section IV, #22) | B6: ='Data Input'!G112 -> 00:00:00 | C6: (macros depend on them)
A7: Date Put Into Service/Go-Live Date (#14 from Data Input tab) | B7: ='Data Input'!G87 -> 00:00:00
A8: Subscription End Date including Extensions (Section IV, #17) | B8: ='Data Input'!G96 -> 1900-01-30
A10: Fixed Subscription Payment Schedule (Section V, #23 & see instructions below): | B10: Amount | C10: # of Payments
A11: Payment Amount #1 & # of Payments at this amount | B11: 0 | C11: 0
A12: Payment Amount #2 & # of Payments at this amount | B12: 0 | C12: 0
A13: Payment Amount #3 & # of Payments at this amount | B13: 0 | C13: 0
A14: Payment Amount #4 & # of Payments at this amount | B14: 0 | C14: 0
A15: Totals from add'l table below (if needed) | B15: =B102 -> 0 | C15: =C102 -> 0
A16: Total Subscription Payments (sum of all payment amounts * # of payments) | B16: =(B11*C11)+(B12*C12)+(B13*C13)+(B14*C14)+(B15) -> 0 | C16: =SUM(C11:C15) -> 0
A18: Other Payment Considerations: | C18: Answer per Data Input Tab
A19: Termination Penalty (Section V, #26) | B19: 0 | C19: ='Data Input'!G133 -> 0
A21: Total Other Payment Considerations | B21: =SUM(B19:B20) -> 0
A22: Total Undiscounted Cash Flows (Total Payments + Other Considerations) | B22: =B16+B21 -> 0
C24: Important:
A25: Liability Net Present Value (calculated after Macros below run) | B25: =SUM(G:G) -> 0 | C25: Do not insert/delete/move
C26: NPV must be cell B25
C27: (macros depend on it)
A28: Asset Adjustments (from Asset Adj tab): | B28: Asset Adj Amount
A29: Total Asset Adjustments during Current Year | B29: ='Asset Adj'!G124 -> 0
A30: EXPECTED Future Asset Adjustments (if there is an amt here, s/b DIP) | B30: ='Asset Adj'!G125 -> 0 | C30: DIP or Final?
A31: Total Asset Adjustment | B31: =SUM(B29:B30) -> 0 | C31: ='Asset Adj'!G127 -> FINAL Adj Amount
A34: Software Subscription Asset Cost (calculated after Macros below run) | B34: =IF(C31="FINAL Adj Amount",B25+B31,"Not yet determined") -> 0
A36: The Agency is not required to calculate the Present Value and/or enable Macros,
A37: but Steps 1 & 2 of the instructions below are REQUIRED to be completed.
A38: After completing Steps 1 & 2, if desired to calculate the Present Value, complete Steps 3 - 8:
A40: Note 1: First make sure your Excel settings are correct - | B40: See How to Enable Macros tab
A41: Note 2: Please do not Insert, Delete, or Move any cells, columns or rows as this could cause the Macros to fail.
A42: Note 3: The Teal Cells in columns B & C are for manual input, and the Present Value Table will need to be adjusted in column F.
A43: The Orange cells in columns B & C will automatically fill. The Present Value and Amortization Tables will be generated with the
A44: Macro buttons. Please do not make changes to the orange cells or anywhere within the Tables (except column F).
A46: Step 1 - Fill out the "Fixed Subscription Payment Schedule" above (starting on row 10).
A47: a - To calculate the Fixed Subscription Payment:
A48: i - Start with the fixed subscription periodic payments stated in the contract.
A49: ii - In addition, add "Fixed In-Substance Fees" to the above amount. "Fixed In-Substance Fees" are the Minimum Usage Costs of a variable
A50: usage fee. For Example, if a subscription includes up to 5 gigs of data used for a set fee, but charges extra for every additional gig, the
A51: minimum fee for the first 5 gigs is the "Fixed In-Substance Fee", and the per gig fees above that minimum would be the variable fees.
A52: iii - For payments that depend on an index or a rate (such as the Consumer Price Index or a market interest rate), the payment should be
A53: initially measured using the index or rate published as of the start of the subscription term.
A54: iv - EXCLUDE any variable usage fees and/or support/maintenance service fees included in the payment (see #24 & 25 in Data Input tab)
A55: b - If payments escalate over time, list the beginning payment amount (col B) & # of payments to be paid at that amount (col C), then
A56: move to line #2 and list the next payment amount & # of payments at that amount, etc.
A57: c - If an extension is deemed Reasonably Certain to be exercised, but the amount is listed as "negotiable", then use the fixed
A58: payment amount just prior to the date of extension for those unknown amounts.
A59: d - If there is an Abated or Free Rent period (skipped payment) indicated in the SBITA contract, | C59: Desc of Lease Incentives
A60: indicate that with a $0 payment amount (col B) & the number of payments to be skipped (col C). | C60: ='Data Input'!G139 -> 0
A61: Make sure to put these skipped payments in the correct order chronologically. For example, if there
A62: is a skipped payment for payment 13, list the first 12 payments on the first line, then list line #2 as
A63: $0 (col B) and 1 (col C), then line #3 as the continuing payments after the skipped payment.
A64: e - If a Bonus payment from the SBITA Vendor is included in the contract, subtract that amount from the payment closest to the proper
A65: chronological period (as described in d above). This may cause that payment amount to be negative.
A66: f - If payments are Less Often than Annually,indicate this in the Payment Schedule above by listing the 1st payment on the 1st row & a 1 in
A67: col C, then the 2nd row should show how many years to be skipped in col C ($0 in col B), then the 3rd row will show the 2nd payment.
A68: Repeat until all payments & all years are represented in the Payment Schdl (total in col C should tie to total yrs of subscription term in
A69: cell B4).
A70: g - Use the Teal box below to add any extra details, how payments change over time (For example, (a) Payment increases 5% every 10 yrs;
A71: (b) Payment recalculated every 5 yrs based on CPI, etc.), or describe payment frequency if Less Often than Annually.
A75: h - If there are not enough lines in the Payment Schedule above, use the table below to input the additional payment amounts, and the
A76: totals from the additional table will automatically be added to the Payment Schedule above. Contact the GAAP Group if you need more
A77: than 25 lines.
A78: i - Verify that the total # of payments in cell B4 is the same as the sum of col C (cell C16).
A80: Additional Subscription Payment Lines (if needed) | B80: Amount | C80: # of Payments
A81: Payment Amount #5 & # of Payments at this amount | B81: 0 | C81: 0
A82: Payment Amount #6 & # of Payments at this amount | B82: 0 | C82: 0
A83: Payment Amount #7 & # of Payments at this amount | B83: 0 | C83: 0
A84: Payment Amount #8 & # of Payments at this amount | B84: 0 | C84: 0
A85: Payment Amount #9 & # of Payments at this amount | B85: 0 | C85: 0
A86: Payment Amount #10 & # of Payments at this amount | B86: 0 | C86: 0
A87: Payment Amount #11 & # of Payments at this amount | B87: 0 | C87: 0
A88: Payment Amount #12 & # of Payments at this amount | B88: 0 | C88: 0
A89: Payment Amount #13 & # of Payments at this amount | B89: 0 | C89: 0
A90: Payment Amount #14 & # of Payments at this amount | B90: 0 | C90: 0
A91: Payment Amount #15 & # of Payments at this amount | B91: 0 | C91: 0
A92: Payment Amount #16 & # of Payments at this amount | B92: 0 | C92: 0
A93: Payment Amount #17 & # of Payments at this amount | B93: 0 | C93: 0
A94: Payment Amount #18 & # of Payments at this amount | B94: 0 | C94: 0
A95: Payment Amount #19 & # of Payments at this amount | B95: 0 | C95: 0
A96: Payment Amount #20 & # of Payments at this amount | B96: 0 | C96: 0
A97: Payment Amount #21 & # of Payments at this amount | B97: 0 | C97: 0
A98: Payment Amount #22 & # of Payments at this amount | B98: 0 | C98: 0
A99: Payment Amount #23 & # of Payments at this amount | B99: 0 | C99: 0
A100: Payment Amount #24 & # of Payments at this amount | B100: 0 | C100: 0
A101: Payment Amount #25 & # of Payments at this amount | B101: 0 | C101: 0
A102: Total Add'l Subscription Payments (will automatically be added to the Schdl above) | B102: =(B81*C81)+(B82*C82)+(B83*C83)+(B84*C84)+(B85*C85)+(B86*C86)+(B87*C87)+(B88*C88)+(B89*C89)+(B90*C90)+(B91*C91)+(B92*C92)+(B93*C93)+(B94*C94)+(B95*C95)+(B96*C96)+(B97*C97)+(B98*C98)+(B99*C99)+(B100*C100)+(B101*C101) -> 0 | C102: =SUM(C81:C101) -> 0
A105: Step 2 - Fill out the "Other Payment Considerations" section (starting on row 18) ONLY if instructed to do so on the Data Input tab
A106: The Termination Penalty line should only have an amount listed if a termination clause is deemed Reasonably Certain to be exercised
A107: based on decisions by the Agency (response from the Data Input tab is shown in col C) AND this termination will cause a Penalty to be due.
A109: Steps 3 - 8 are OPTIONAL (calculation of Present Value and Amortization Tables)
A110: Step 3 - Click the Macro button below to Generate the first 2 columns of the Present Value (PV) Table.
A113: Step 4 - Using the Payment Schedule filled out in Steps 1 & 2, fill in the Payment Amounts into col F of the PV Table.
A114: a - If there are 12 payments for the 1st payment amount, and 6 payments for the 2nd payment amount, list the 1st amount in the
A115: first 12 rows of the Table, then the 2nd amount for the next 6 rows, and do the same for the remaining payment amounts listed
A116: in the Payment Schedule until all the payments are filled in on the Table.
A117: b - Make sure not to miss any Skipped Payment periods. If the Payment Schedule indicates the 13th payment is $0, then row 13 of the
A118: Table should be $0, same as the Payment Schedule.
A119: c - If there are any amounts listed for "Other Payment Considerations", add it to the final payment. For example, if the final
A120: payment is $20,000, and there is a Termination Penalty listed for $50,000, then the final payment in the Table should be $70,000.
A121: d - Check to make sure that the sum of all the payments entered into col F of the Table is the same as the Total Undiscounted Cash
A122: Flows in cell B22.
A124: Step 5 - Click the Macro button below to Calculate Net Present Value and Generate the PV and Amortization Tables.
A128: Step 6 - Check data for accuracy:
A129: a - Check the date of the final payment in the Amortization Table and compare to Subscription End Date in cell B8. Make sure the final
A130: payment date is reasonable in comparison to the subscription End Date (within same month if payments are Monthly, within the final
A131: quarter if Quarterly, etc).
A132: b - If payments change (there are amounts in Payment Amount #2 + rows), then check the dates the amounts change in the
A133: Amort Table (col K & M) to make sure the payments change on the correct dates as per the SBITA Contract.
A134: c - If 6a and 6b are BOTH correct, skip to Step 8 (Do NOT click the Start Over Macro Button).
A135: d - If 6a or 6b does not appear to be correct:
A136: i - Double-check the Instructions above (Steps 1 - 6), including the check for # of payments in 1i & check for Table payments in 4d.
A137: ii - Double-check cells B2-B8 by reviewing the SBITA Contract. These cells automatically filled based on answers in the Data Input
A138: tab. Make any necessary corrections in the Data Input tab (NOT in cells B2-B8) - the corresponding question #s are referenced above.
A139: iii - Double-Check the Payment Schedule and Other Payment Considerations sections. Compare back to the SBITA contract to
A140: verify, and correct as necessary.
A141: e - Once corrections have been made, click the Macro button below to Delete the PV & Amortization Tables.
A145: Step 7 - Repeat Steps 3-6 as needed until all checks (1i, 4d, 6a, 6b, and 6di-6diii) are correct.
A147: Step 8 - See Net Present Value calculated in cell B25 for the SBITA Liability and the SBITA Asset Cost in cell B34.
A148: Also, see Present Value Table in columns E-G,
A149: and Amortization Table in columns J-P.
A150: Note: If Implementation Period is not yet complete, then only a Development in Process Asset will be recognized at this point (cell B34 will
A151: return a value of "Not yet determined" if implementation is still in process & will also be noted as "Development in Process" in cell C31).
A152: The SBITA Liability & SBITA Asset will not be recognized until the SBITA is Put Into Service/Go-Live Date. If this is the case, please continue
A153: to track all Implementation Costs. This info will be requested in the following year's Closing Package Activity Form.
A155: Please DO NOT add SBITA implementation costs into the AZ360 Fixed Assets System. This will be done manually as the SBITA Asset
A156: includes not only the implementation costs, but also the Present Value of the Subscription Fixed Payments (Liability).

Sheet SBITA 6 - PV Calc
A1: Present Value Calculations tab - SBITA # 6 (column H) | B1: Contract # | C1: ='Data Input'!H35 -> 0
A2: Periodic Interest Rate (Section VI, #28-29 from Data Input tab) | B2: ='Data Input'!H156 -> 0
A3: Cash Flows at Beginning or End (Section IV, #21) | B3: ='Data Input'!H108 -> 0 | C3: Important:
A4: Number of payments (Section IV, #20) | B4: ='Data Input'!H105 -> 0 | C4: Do not insert/delete/move
A5: Frequency of payments (Section IV, #19) | B5: ='Data Input'!H101 -> 0 | C5: cells B2:B8
A6: Date of first payment (Section IV, #22) | B6: ='Data Input'!H112 -> 00:00:00 | C6: (macros depend on them)
A7: Date Put Into Service/Go-Live Date (#14 from Data Input tab) | B7: ='Data Input'!H87 -> 00:00:00
A8: Subscription End Date including Extensions (Section IV, #17) | B8: ='Data Input'!H96 -> 1900-01-30
A10: Fixed Subscription Payment Schedule (Section V, #23 & see instructions below): | B10: Amount | C10: # of Payments
A11: Payment Amount #1 & # of Payments at this amount | B11: 0 | C11: 0
A12: Payment Amount #2 & # of Payments at this amount | B12: 0 | C12: 0
A13: Payment Amount #3 & # of Payments at this amount | B13: 0 | C13: 0
A14: Payment Amount #4 & # of Payments at this amount | B14: 0 | C14: 0
A15: Totals from add'l table below (if needed) | B15: =B102 -> 0 | C15: =C102 -> 0
A16: Total Subscription Payments (sum of all payment amounts * # of payments) | B16: =(B11*C11)+(B12*C12)+(B13*C13)+(B14*C14)+(B15) -> 0 | C16: =SUM(C11:C15) -> 0
A18: Other Payment Considerations: | C18: Answer per Data Input Tab
A19: Termination Penalty (Section V, #26) | B19: 0 | C19: ='Data Input'!H133 -> 0
A21: Total Other Payment Considerations | B21: =SUM(B19:B20) -> 0
A22: Total Undiscounted Cash Flows (Total Payments + Other Considerations) | B22: =B16+B21 -> 0
C24: Important:
A25: Liability Net Present Value (calculated after Macros below run) | B25: =SUM(G:G) -> 0 | C25: Do not insert/delete/move
C26: NPV must be cell B25
C27: (macros depend on it)
A28: Asset Adjustments (from Asset Adj tab): | B28: Asset Adj Amount
A29: Total Asset Adjustments during Current Year | B29: ='Asset Adj'!H124 -> 0
A30: EXPECTED Future Asset Adjustments (if there is an amt here, s/b DIP) | B30: ='Asset Adj'!H125 -> 0 | C30: DIP or Final?
A31: Total Asset Adjustment | B31: =SUM(B29:B30) -> 0 | C31: ='Asset Adj'!H127 -> FINAL Adj Amount
A34: Software Subscription Asset Cost (calculated after Macros below run) | B34: =IF(C31="FINAL Adj Amount",B25+B31,"Not yet determined") -> 0
A36: The Agency is not required to calculate the Present Value and/or enable Macros,
A37: but Steps 1 & 2 of the instructions below are REQUIRED to be completed.
A38: After completing Steps 1 & 2, if desired to calculate the Present Value, complete Steps 3 - 8:
A40: Note 1: First make sure your Excel settings are correct - | B40: See How to Enable Macros tab
A41: Note 2: Please do not Insert, Delete, or Move any cells, columns or rows as this could cause the Macros to fail.
A42: Note 3: The Teal Cells in columns B & C are for manual input, and the Present Value Table will need to be adjusted in column F.
A43: The Orange cells in columns B & C will automatically fill. The Present Value and Amortization Tables will be generated with the
A44: Macro buttons. Please do not make changes to the orange cells or anywhere within the Tables (except column F).
A46: Step 1 - Fill out the "Fixed Subscription Payment Schedule" above (starting on row 10).
A47: a - To calculate the Fixed Subscription Payment:
A48: i - Start with the fixed subscription periodic payments stated in the contract.
A49: ii - In addition, add "Fixed In-Substance Fees" to the above amount. "Fixed In-Substance Fees" are the Minimum Usage Costs of a variable
A50: usage fee. For Example, if a subscription includes up to 5 gigs of data used for a set fee, but charges extra for every additional gig, the
A51: minimum fee for the first 5 gigs is the "Fixed In-Substance Fee", and the per gig fees above that minimum would be the variable fees.
A52: iii - For payments that depend on an index or a rate (such as the Consumer Price Index or a market interest rate), the payment should be
A53: initially measured using the index or rate published as of the start of the subscription term.
A54: iv - EXCLUDE any variable usage fees and/or support/maintenance service fees included in the payment (see #24 & 25 in Data Input tab)
A55: b - If payments escalate over time, list the beginning payment amount (col B) & # of payments to be paid at that amount (col C), then
A56: move to line #2 and list the next payment amount & # of payments at that amount, etc.
A57: c - If an extension is deemed Reasonably Certain to be exercised, but the amount is listed as "negotiable", then use the fixed
A58: payment amount just prior to the date of extension for those unknown amounts.
A59: d - If there is an Abated or Free Rent period (skipped payment) indicated in the SBITA contract, | C59: Desc of Lease Incentives
A60: indicate that with a $0 payment amount (col B) & the number of payments to be skipped (col C). | C60: ='Data Input'!H139 -> 0
A61: Make sure to put these skipped payments in the correct order chronologically. For example, if there
A62: is a skipped payment for payment 13, list the first 12 payments on the first line, then list line #2 as
A63: $0 (col B) and 1 (col C), then line #3 as the continuing payments after the skipped payment.
A64: e - If a Bonus payment from the SBITA Vendor is included in the contract, subtract that amount from the payment closest to the proper
A65: chronological period (as described in d above). This may cause that payment amount to be negative.
A66: f - If payments are Less Often than Annually,indicate this in the Payment Schedule above by listing the 1st payment on the 1st row & a 1 in
A67: col C, then the 2nd row should show how many years to be skipped in col C ($0 in col B), then the 3rd row will show the 2nd payment.
A68: Repeat until all payments & all years are represented in the Payment Schdl (total in col C should tie to total yrs of subscription term in
A69: cell B4).
A70: g - Use the Teal box below to add any extra details, how payments change over time (For example, (a) Payment increases 5% every 10 yrs;
A71: (b) Payment recalculated every 5 yrs based on CPI, etc.), or describe payment frequency if Less Often than Annually.
A75: h - If there are not enough lines in the Payment Schedule above, use the table below to input the additional payment amounts, and the
A76: totals from the additional table will automatically be added to the Payment Schedule above. Contact the GAAP Group if you need more
A77: than 25 lines.
A78: i - Verify that the total # of payments in cell B4 is the same as the sum of col C (cell C16).
A80: Additional Subscription Payment Lines (if needed) | B80: Amount | C80: # of Payments
A81: Payment Amount #5 & # of Payments at this amount | B81: 0 | C81: 0
A82: Payment Amount #6 & # of Payments at this amount | B82: 0 | C82: 0
A83: Payment Amount #7 & # of Payments at this amount | B83: 0 | C83: 0
A84: Payment Amount #8 & # of Payments at this amount | B84: 0 | C84: 0
A85: Payment Amount #9 & # of Payments at this amount | B85: 0 | C85: 0
A86: Payment Amount #10 & # of Payments at this amount | B86: 0 | C86: 0
A87: Payment Amount #11 & # of Payments at this amount | B87: 0 | C87: 0
A88: Payment Amount #12 & # of Payments at this amount | B88: 0 | C88: 0
A89: Payment Amount #13 & # of Payments at this amount | B89: 0 | C89: 0
A90: Payment Amount #14 & # of Payments at this amount | B90: 0 | C90: 0
A91: Payment Amount #15 & # of Payments at this amount | B91: 0 | C91: 0
A92: Payment Amount #16 & # of Payments at this amount | B92: 0 | C92: 0
A93: Payment Amount #17 & # of Payments at this amount | B93: 0 | C93: 0
A94: Payment Amount #18 & # of Payments at this amount | B94: 0 | C94: 0
A95: Payment Amount #19 & # of Payments at this amount | B95: 0 | C95: 0
A96: Payment Amount #20 & # of Payments at this amount | B96: 0 | C96: 0
A97: Payment Amount #21 & # of Payments at this amount | B97: 0 | C97: 0
A98: Payment Amount #22 & # of Payments at this amount | B98: 0 | C98: 0
A99: Payment Amount #23 & # of Payments at this amount | B99: 0 | C99: 0
A100: Payment Amount #24 & # of Payments at this amount | B100: 0 | C100: 0
A101: Payment Amount #25 & # of Payments at this amount | B101: 0 | C101: 0
A102: Total Add'l Subscription Payments (will automatically be added to the Schdl above) | B102: =(B81*C81)+(B82*C82)+(B83*C83)+(B84*C84)+(B85*C85)+(B86*C86)+(B87*C87)+(B88*C88)+(B89*C89)+(B90*C90)+(B91*C91)+(B92*C92)+(B93*C93)+(B94*C94)+(B95*C95)+(B96*C96)+(B97*C97)+(B98*C98)+(B99*C99)+(B100*C100)+(B101*C101) -> 0 | C102: =SUM(C81:C101) -> 0
A105: Step 2 - Fill out the "Other Payment Considerations" section (starting on row 18) ONLY if instructed to do so on the Data Input tab
A106: The Termination Penalty line should only have an amount listed if a termination clause is deemed Reasonably Certain to be exercised
A107: based on decisions by the Agency (response from the Data Input tab is shown in col C) AND this termination will cause a Penalty to be due.
A109: Steps 3 - 8 are OPTIONAL (calculation of Present Value and Amortization Tables)
A110: Step 3 - Click the Macro button below to Generate the first 2 columns of the Present Value (PV) Table.
A113: Step 4 - Using the Payment Schedule filled out in Steps 1 & 2, fill in the Payment Amounts into col F of the PV Table.
A114: a - If there are 12 payments for the 1st payment amount, and 6 payments for the 2nd payment amount, list the 1st amount in the
A115: first 12 rows of the Table, then the 2nd amount for the next 6 rows, and do the same for the remaining payment amounts listed
A116: in the Payment Schedule until all the payments are filled in on the Table.
A117: b - Make sure not to miss any Skipped Payment periods. If the Payment Schedule indicates the 13th payment is $0, then row 13 of the
A118: Table should be $0, same as the Payment Schedule.
A119: c - If there are any amounts listed for "Other Payment Considerations", add it to the final payment. For example, if the final
A120: payment is $20,000, and there is a Termination Penalty listed for $50,000, then the final payment in the Table should be $70,000.
A121: d - Check to make sure that the sum of all the payments entered into col F of the Table is the same as the Total Undiscounted Cash
A122: Flows in cell B22.
A124: Step 5 - Click the Macro button below to Calculate Net Present Value and Generate the PV and Amortization Tables.
A128: Step 6 - Check data for accuracy:
A129: a - Check the date of the final payment in the Amortization Table and compare to Subscription End Date in cell B8. Make sure the final
A130: payment date is reasonable in comparison to the subscription End Date (within same month if payments are Monthly, within the final
A131: quarter if Quarterly, etc).
A132: b - If payments change (there are amounts in Payment Amount #2 + rows), then check the dates the amounts change in the
A133: Amort Table (col K & M) to make sure the payments change on the correct dates as per the SBITA Contract.
A134: c - If 6a and 6b are BOTH correct, skip to Step 8 (Do NOT click the Start Over Macro Button).
A135: d - If 6a or 6b does not appear to be correct:
A136: i - Double-check the Instructions above (Steps 1 - 6), including the check for # of payments in 1i & check for Table payments in 4d.
A137: ii - Double-check cells B2-B8 by reviewing the SBITA Contract. These cells automatically filled based on answers in the Data Input
A138: tab. Make any necessary corrections in the Data Input tab (NOT in cells B2-B8) - the corresponding question #s are referenced above.
A139: iii - Double-Check the Payment Schedule and Other Payment Considerations sections. Compare back to the SBITA contract to
A140: verify, and correct as necessary.
A141: e - Once corrections have been made, click the Macro button below to Delete the PV & Amortization Tables.
A145: Step 7 - Repeat Steps 3-6 as needed until all checks (1i, 4d, 6a, 6b, and 6di-6diii) are correct.
A147: Step 8 - See Net Present Value calculated in cell B25 for the SBITA Liability and the SBITA Asset Cost in cell B34.
A148: Also, see Present Value Table in columns E-G,
A149: and Amortization Table in columns J-P.
A150: Note: If Implementation Period is not yet complete, then only a Development in Process Asset will be recognized at this point (cell B34 will
A151: return a value of "Not yet determined" if implementation is still in process & will also be noted as "Development in Process" in cell C31).
A152: The SBITA Liability & SBITA Asset will not be recognized until the SBITA is Put Into Service/Go-Live Date. If this is the case, please continue
A153: to track all Implementation Costs. This info will be requested in the following year's Closing Package Activity Form.
A155: Please DO NOT add SBITA implementation costs into the AZ360 Fixed Assets System. This will be done manually as the SBITA Asset
A156: includes not only the implementation costs, but also the Present Value of the Subscription Fixed Payments (Liability).

Sheet SBITA 7 - PV Calc
A1: Present Value Calculations tab - SBITA # 7 (column I) | B1: Contract # | C1: ='Data Input'!I35 -> 0
A2: Periodic Interest Rate (Section VI, #28-29 from Data Input tab) | B2: ='Data Input'!I156 -> 0
A3: Cash Flows at Beginning or End (Section IV, #21) | B3: ='Data Input'!I108 -> 0 | C3: Important:
A4: Number of payments (Section IV, #20) | B4: ='Data Input'!I105 -> 0 | C4: Do not insert/delete/move
A5: Frequency of payments (Section IV, #19) | B5: ='Data Input'!I101 -> 0 | C5: cells B2:B8
A6: Date of first payment (Section IV, #22) | B6: ='Data Input'!I112 -> 00:00:00 | C6: (macros depend on them)
A7: Date Put Into Service/Go-Live Date (#14 from Data Input tab) | B7: ='Data Input'!I87 -> 00:00:00
A8: Subscription End Date including Extensions (Section IV, #17) | B8: ='Data Input'!I96 -> 1900-01-30
A10: Fixed Subscription Payment Schedule (Section V, #23 & see instructions below): | B10: Amount | C10: # of Payments
A11: Payment Amount #1 & # of Payments at this amount | B11: 0 | C11: 0
A12: Payment Amount #2 & # of Payments at this amount | B12: 0 | C12: 0
A13: Payment Amount #3 & # of Payments at this amount | B13: 0 | C13: 0
A14: Payment Amount #4 & # of Payments at this amount | B14: 0 | C14: 0
A15: Totals from add'l table below (if needed) | B15: =B102 -> 0 | C15: =C102 -> 0
A16: Total Subscription Payments (sum of all payment amounts * # of payments) | B16: =(B11*C11)+(B12*C12)+(B13*C13)+(B14*C14)+(B15) -> 0 | C16: =SUM(C11:C15) -> 0
A18: Other Payment Considerations: | C18: Answer per Data Input Tab
A19: Termination Penalty (Section V, #26) | B19: 0 | C19: ='Data Input'!I133 -> 0
A21: Total Other Payment Considerations | B21: =SUM(B19:B20) -> 0
A22: Total Undiscounted Cash Flows (Total Payments + Other Considerations) | B22: =B16+B21 -> 0
C24: Important:
A25: Liability Net Present Value (calculated after Macros below run) | B25: =SUM(G:G) -> 0 | C25: Do not insert/delete/move
C26: NPV must be cell B25
C27: (macros depend on it)
A28: Asset Adjustments (from Asset Adj tab): | B28: Asset Adj Amount
A29: Total Asset Adjustments during Current Year | B29: ='Asset Adj'!I124 -> 0
A30: EXPECTED Future Asset Adjustments (if there is an amt here, s/b DIP) | B30: ='Asset Adj'!I125 -> 0 | C30: DIP or Final?
A31: Total Asset Adjustment | B31: =SUM(B29:B30) -> 0 | C31: ='Asset Adj'!I127 -> FINAL Adj Amount
A34: Software Subscription Asset Cost (calculated after Macros below run) | B34: =IF(C31="FINAL Adj Amount",B25+B31,"Not yet determined") -> 0
A36: The Agency is not required to calculate the Present Value and/or enable Macros,
A37: but Steps 1 & 2 of the instructions below are REQUIRED to be completed.
A38: After completing Steps 1 & 2, if desired to calculate the Present Value, complete Steps 3 - 8:
A40: Note 1: First make sure your Excel settings are correct - | B40: See How to Enable Macros tab
A41: Note 2: Please do not Insert, Delete, or Move any cells, columns or rows as this could cause the Macros to fail.
A42: Note 3: The Teal Cells in columns B & C are for manual input, and the Present Value Table will need to be adjusted in column F.
A43: The Orange cells in columns B & C will automatically fill. The Present Value and Amortization Tables will be generated with the
A44: Macro buttons. Please do not make changes to the orange cells or anywhere within the Tables (except column F).
A46: Step 1 - Fill out the "Fixed Subscription Payment Schedule" above (starting on row 10).
A47: a - To calculate the Fixed Subscription Payment:
A48: i - Start with the fixed subscription periodic payments stated in the contract.
A49: ii - In addition, add "Fixed In-Substance Fees" to the above amount. "Fixed In-Substance Fees" are the Minimum Usage Costs of a variable
A50: usage fee. For Example, if a subscription includes up to 5 gigs of data used for a set fee, but charges extra for every additional gig, the
A51: minimum fee for the first 5 gigs is the "Fixed In-Substance Fee", and the per gig fees above that minimum would be the variable fees.
A52: iii - For payments that depend on an index or a rate (such as the Consumer Price Index or a market interest rate), the payment should be
A53: initially measured using the index or rate published as of the start of the subscription term.
A54: iv - EXCLUDE any variable usage fees and/or support/maintenance service fees included in the payment (see #24 & 25 in Data Input tab)
A55: b - If payments escalate over time, list the beginning payment amount (col B) & # of payments to be paid at that amount (col C), then
A56: move to line #2 and list the next payment amount & # of payments at that amount, etc.
A57: c - If an extension is deemed Reasonably Certain to be exercised, but the amount is listed as "negotiable", then use the fixed
A58: payment amount just prior to the date of extension for those unknown amounts.
A59: d - If there is an Abated or Free Rent period (skipped payment) indicated in the SBITA contract, | C59: Desc of Lease Incentives
A60: indicate that with a $0 payment amount (col B) & the number of payments to be skipped (col C). | C60: ='Data Input'!I139 -> 0
A61: Make sure to put these skipped payments in the correct order chronologically. For example, if there
A62: is a skipped payment for payment 13, list the first 12 payments on the first line, then list line #2 as
A63: $0 (col B) and 1 (col C), then line #3 as the continuing payments after the skipped payment.
A64: e - If a Bonus payment from the SBITA Vendor is included in the contract, subtract that amount from the payment closest to the proper
A65: chronological period (as described in d above). This may cause that payment amount to be negative.
A66: f - If payments are Less Often than Annually,indicate this in the Payment Schedule above by listing the 1st payment on the 1st row & a 1 in
A67: col C, then the 2nd row should show how many years to be skipped in col C ($0 in col B), then the 3rd row will show the 2nd payment.
A68: Repeat until all payments & all years are represented in the Payment Schdl (total in col C should tie to total yrs of subscription term in
A69: cell B4).
A70: g - Use the Teal box below to add any extra details, how payments change over time (For example, (a) Payment increases 5% every 10 yrs;
A71: (b) Payment recalculated every 5 yrs based on CPI, etc.), or describe payment frequency if Less Often than Annually.
A75: h - If there are not enough lines in the Payment Schedule above, use the table below to input the additional payment amounts, and the
A76: totals from the additional table will automatically be added to the Payment Schedule above. Contact the GAAP Group if you need more
A77: than 25 lines.
A78: i - Verify that the total # of payments in cell B4 is the same as the sum of col C (cell C16).
A80: Additional Subscription Payment Lines (if needed) | B80: Amount | C80: # of Payments
A81: Payment Amount #5 & # of Payments at this amount | B81: 0 | C81: 0
A82: Payment Amount #6 & # of Payments at this amount | B82: 0 | C82: 0
A83: Payment Amount #7 & # of Payments at this amount | B83: 0 | C83: 0
A84: Payment Amount #8 & # of Payments at this amount | B84: 0 | C84: 0
A85: Payment Amount #9 & # of Payments at this amount | B85: 0 | C85: 0
A86: Payment Amount #10 & # of Payments at this amount | B86: 0 | C86: 0
A87: Payment Amount #11 & # of Payments at this amount | B87: 0 | C87: 0
A88: Payment Amount #12 & # of Payments at this amount | B88: 0 | C88: 0
A89: Payment Amount #13 & # of Payments at this amount | B89: 0 | C89: 0
A90: Payment Amount #14 & # of Payments at this amount | B90: 0 | C90: 0
A91: Payment Amount #15 & # of Payments at this amount | B91: 0 | C91: 0
A92: Payment Amount #16 & # of Payments at this amount | B92: 0 | C92: 0
A93: Payment Amount #17 & # of Payments at this amount | B93: 0 | C93: 0
A94: Payment Amount #18 & # of Payments at this amount | B94: 0 | C94: 0
A95: Payment Amount #19 & # of Payments at this amount | B95: 0 | C95: 0
A96: Payment Amount #20 & # of Payments at this amount | B96: 0 | C96: 0
A97: Payment Amount #21 & # of Payments at this amount | B97: 0 | C97: 0
A98: Payment Amount #22 & # of Payments at this amount | B98: 0 | C98: 0
A99: Payment Amount #23 & # of Payments at this amount | B99: 0 | C99: 0
A100: Payment Amount #24 & # of Payments at this amount | B100: 0 | C100: 0
A101: Payment Amount #25 & # of Payments at this amount | B101: 0 | C101: 0
A102: Total Add'l Subscription Payments (will automatically be added to the Schdl above) | B102: =(B81*C81)+(B82*C82)+(B83*C83)+(B84*C84)+(B85*C85)+(B86*C86)+(B87*C87)+(B88*C88)+(B89*C89)+(B90*C90)+(B91*C91)+(B92*C92)+(B93*C93)+(B94*C94)+(B95*C95)+(B96*C96)+(B97*C97)+(B98*C98)+(B99*C99)+(B100*C100)+(B101*C101) -> 0 | C102: =SUM(C81:C101) -> 0
A105: Step 2 - Fill out the "Other Payment Considerations" section (starting on row 18) ONLY if instructed to do so on the Data Input tab
A106: The Termination Penalty line should only have an amount listed if a termination clause is deemed Reasonably Certain to be exercised
A107: based on decisions by the Agency (response from the Data Input tab is shown in col C) AND this termination will cause a Penalty to be due.
A109: Steps 3 - 8 are OPTIONAL (calculation of Present Value and Amortization Tables)
A110: Step 3 - Click the Macro button below to Generate the first 2 columns of the Present Value (PV) Table.
A113: Step 4 - Using the Payment Schedule filled out in Steps 1 & 2, fill in the Payment Amounts into col F of the PV Table.
A114: a - If there are 12 payments for the 1st payment amount, and 6 payments for the 2nd payment amount, list the 1st amount in the
A115: first 12 rows of the Table, then the 2nd amount for the next 6 rows, and do the same for the remaining payment amounts listed
A116: in the Payment Schedule until all the payments are filled in on the Table.
A117: b - Make sure not to miss any Skipped Payment periods. If the Payment Schedule indicates the 13th payment is $0, then row 13 of the
A118: Table should be $0, same as the Payment Schedule.
A119: c - If there are any amounts listed for "Other Payment Considerations", add it to the final payment. For example, if the final
A120: payment is $20,000, and there is a Termination Penalty listed for $50,000, then the final payment in the Table should be $70,000.
A121: d - Check to make sure that the sum of all the payments entered into col F of the Table is the same as the Total Undiscounted Cash
A122: Flows in cell B22.
A124: Step 5 - Click the Macro button below to Calculate Net Present Value and Generate the PV and Amortization Tables.
A128: Step 6 - Check data for accuracy:
A129: a - Check the date of the final payment in the Amortization Table and compare to Subscription End Date in cell B8. Make sure the final
A130: payment date is reasonable in comparison to the subscription End Date (within same month if payments are Monthly, within the final
A131: quarter if Quarterly, etc).
A132: b - If payments change (there are amounts in Payment Amount #2 + rows), then check the dates the amounts change in the
A133: Amort Table (col K & M) to make sure the payments change on the correct dates as per the SBITA Contract.
A134: c - If 6a and 6b are BOTH correct, skip to Step 8 (Do NOT click the Start Over Macro Button).
A135: d - If 6a or 6b does not appear to be correct:
A136: i - Double-check the Instructions above (Steps 1 - 6), including the check for # of payments in 1i & check for Table payments in 4d.
A137: ii - Double-check cells B2-B8 by reviewing the SBITA Contract. These cells automatically filled based on answers in the Data Input
A138: tab. Make any necessary corrections in the Data Input tab (NOT in cells B2-B8) - the corresponding question #s are referenced above.
A139: iii - Double-Check the Payment Schedule and Other Payment Considerations sections. Compare back to the SBITA contract to
A140: verify, and correct as necessary.
A141: e - Once corrections have been made, click the Macro button below to Delete the PV & Amortization Tables.
A145: Step 7 - Repeat Steps 3-6 as needed until all checks (1i, 4d, 6a, 6b, and 6di-6diii) are correct.
A147: Step 8 - See Net Present Value calculated in cell B25 for the SBITA Liability and the SBITA Asset Cost in cell B34.
A148: Also, see Present Value Table in columns E-G,
A149: and Amortization Table in columns J-P.
A150: Note: If Implementation Period is not yet complete, then only a Development in Process Asset will be recognized at this point (cell B34 will
A151: return a value of "Not yet determined" if implementation is still in process & will also be noted as "Development in Process" in cell C31).
A152: The SBITA Liability & SBITA Asset will not be recognized until the SBITA is Put Into Service/Go-Live Date. If this is the case, please continue
A153: to track all Implementation Costs. This info will be requested in the following year's Closing Package Activity Form.
A155: Please DO NOT add SBITA implementation costs into the AZ360 Fixed Assets System. This will be done manually as the SBITA Asset
A156: includes not only the implementation costs, but also the Present Value of the Subscription Fixed Payments (Liability).

Sheet SBITA 8 - PV Calc
A1: Present Value Calculations tab - SBITA # 8 (column J) | B1: Contract # | C1: ='Data Input'!J35 -> 0
A2: Periodic Interest Rate (Section VI, #28-29 from Data Input tab) | B2: ='Data Input'!J156 -> 0
A3: Cash Flows at Beginning or End (Section IV, #21) | B3: ='Data Input'!J108 -> 0 | C3: Important:
A4: Number of payments (Section IV, #20) | B4: ='Data Input'!J105 -> 0 | C4: Do not insert/delete/move
A5: Frequency of payments (Section IV, #19) | B5: ='Data Input'!J101 -> 0 | C5: cells B2:B8
A6: Date of first payment (Section IV, #22) | B6: ='Data Input'!J112 -> 00:00:00 | C6: (macros depend on them)
A7: Date Put Into Service/Go-Live Date (#14 from Data Input tab) | B7: ='Data Input'!J87 -> 00:00:00
A8: Subscription End Date including Extensions (Section IV, #17) | B8: ='Data Input'!J96 -> 1900-01-30
A10: Fixed Subscription Payment Schedule (Section V, #23 & see instructions below): | B10: Amount | C10: # of Payments
A11: Payment Amount #1 & # of Payments at this amount | B11: 0 | C11: 0
A12: Payment Amount #2 & # of Payments at this amount | B12: 0 | C12: 0
A13: Payment Amount #3 & # of Payments at this amount | B13: 0 | C13: 0
A14: Payment Amount #4 & # of Payments at this amount | B14: 0 | C14: 0
A15: Totals from add'l table below (if needed) | B15: =B102 -> 0 | C15: =C102 -> 0
A16: Total Subscription Payments (sum of all payment amounts * # of payments) | B16: =(B11*C11)+(B12*C12)+(B13*C13)+(B14*C14)+(B15) -> 0 | C16: =SUM(C11:C15) -> 0
A18: Other Payment Considerations: | C18: Answer per Data Input Tab
A19: Termination Penalty (Section V, #26) | B19: 0 | C19: ='Data Input'!J133 -> 0
A21: Total Other Payment Considerations | B21: =SUM(B19:B20) -> 0
A22: Total Undiscounted Cash Flows (Total Payments + Other Considerations) | B22: =B16+B21 -> 0
C24: Important:
A25: Liability Net Present Value (calculated after Macros below run) | B25: =SUM(G:G) -> 0 | C25: Do not insert/delete/move
C26: NPV must be cell B25
C27: (macros depend on it)
A28: Asset Adjustments (from Asset Adj tab): | B28: Asset Adj Amount
A29: Total Asset Adjustments during Current Year | B29: ='Asset Adj'!J124 -> 0
A30: EXPECTED Future Asset Adjustments (if there is an amt here, s/b DIP) | B30: ='Asset Adj'!J125 -> 0 | C30: DIP or Final?
A31: Total Asset Adjustment | B31: =SUM(B29:B30) -> 0 | C31: ='Asset Adj'!J127 -> FINAL Adj Amount
A34: Software Subscription Asset Cost (calculated after Macros below run) | B34: =IF(C31="FINAL Adj Amount",B25+B31,"Not yet determined") -> 0
A36: The Agency is not required to calculate the Present Value and/or enable Macros,
A37: but Steps 1 & 2 of the instructions below are REQUIRED to be completed.
A38: After completing Steps 1 & 2, if desired to calculate the Present Value, complete Steps 3 - 8:
A40: Note 1: First make sure your Excel settings are correct - | B40: See How to Enable Macros tab
A41: Note 2: Please do not Insert, Delete, or Move any cells, columns or rows as this could cause the Macros to fail.
A42: Note 3: The Teal Cells in columns B & C are for manual input, and the Present Value Table will need to be adjusted in column F.
A43: The Orange cells in columns B & C will automatically fill. The Present Value and Amortization Tables will be generated with the
A44: Macro buttons. Please do not make changes to the orange cells or anywhere within the Tables (except column F).
A46: Step 1 - Fill out the "Fixed Subscription Payment Schedule" above (starting on row 10).
A47: a - To calculate the Fixed Subscription Payment:
A48: i - Start with the fixed subscription periodic payments stated in the contract.
A49: ii - In addition, add "Fixed In-Substance Fees" to the above amount. "Fixed In-Substance Fees" are the Minimum Usage Costs of a variable
A50: usage fee. For Example, if a subscription includes up to 5 gigs of data used for a set fee, but charges extra for every additional gig, the
A51: minimum fee for the first 5 gigs is the "Fixed In-Substance Fee", and the per gig fees above that minimum would be the variable fees.
A52: iii - For payments that depend on an index or a rate (such as the Consumer Price Index or a market interest rate), the payment should be
A53: initially measured using the index or rate published as of the start of the subscription term.
A54: iv - EXCLUDE any variable usage fees and/or support/maintenance service fees included in the payment (see #24 & 25 in Data Input tab)
A55: b - If payments escalate over time, list the beginning payment amount (col B) & # of payments to be paid at that amount (col C), then
A56: move to line #2 and list the next payment amount & # of payments at that amount, etc.
A57: c - If an extension is deemed Reasonably Certain to be exercised, but the amount is listed as "negotiable", then use the fixed
A58: payment amount just prior to the date of extension for those unknown amounts.
A59: d - If there is an Abated or Free Rent period (skipped payment) indicated in the SBITA contract, | C59: Desc of Lease Incentives
A60: indicate that with a $0 payment amount (col B) & the number of payments to be skipped (col C). | C60: ='Data Input'!J139 -> 0
A61: Make sure to put these skipped payments in the correct order chronologically. For example, if there
A62: is a skipped payment for payment 13, list the first 12 payments on the first line, then list line #2 as
A63: $0 (col B) and 1 (col C), then line #3 as the continuing payments after the skipped payment.
A64: e - If a Bonus payment from the SBITA Vendor is included in the contract, subtract that amount from the payment closest to the proper
A65: chronological period (as described in d above). This may cause that payment amount to be negative.
A66: f - If payments are Less Often than Annually,indicate this in the Payment Schedule above by listing the 1st payment on the 1st row & a 1 in
A67: col C, then the 2nd row should show how many years to be skipped in col C ($0 in col B), then the 3rd row will show the 2nd payment.
A68: Repeat until all payments & all years are represented in the Payment Schdl (total in col C should tie to total yrs of subscription term in
A69: cell B4).
A70: g - Use the Teal box below to add any extra details, how payments change over time (For example, (a) Payment increases 5% every 10 yrs;
A71: (b) Payment recalculated every 5 yrs based on CPI, etc.), or describe payment frequency if Less Often than Annually.
A75: h - If there are not enough lines in the Payment Schedule above, use the table below to input the additional payment amounts, and the
A76: totals from the additional table will automatically be added to the Payment Schedule above. Contact the GAAP Group if you need more
A77: than 25 lines.
A78: i - Verify that the total # of payments in cell B4 is the same as the sum of col C (cell C16).
A80: Additional Subscription Payment Lines (if needed) | B80: Amount | C80: # of Payments
A81: Payment Amount #5 & # of Payments at this amount | B81: 0 | C81: 0
A82: Payment Amount #6 & # of Payments at this amount | B82: 0 | C82: 0
A83: Payment Amount #7 & # of Payments at this amount | B83: 0 | C83: 0
A84: Payment Amount #8 & # of Payments at this amount | B84: 0 | C84: 0
A85: Payment Amount #9 & # of Payments at this amount | B85: 0 | C85: 0
A86: Payment Amount #10 & # of Payments at this amount | B86: 0 | C86: 0
A87: Payment Amount #11 & # of Payments at this amount | B87: 0 | C87: 0
A88: Payment Amount #12 & # of Payments at this amount | B88: 0 | C88: 0
A89: Payment Amount #13 & # of Payments at this amount | B89: 0 | C89: 0
A90: Payment Amount #14 & # of Payments at this amount | B90: 0 | C90: 0
A91: Payment Amount #15 & # of Payments at this amount | B91: 0 | C91: 0
A92: Payment Amount #16 & # of Payments at this amount | B92: 0 | C92: 0
A93: Payment Amount #17 & # of Payments at this amount | B93: 0 | C93: 0
A94: Payment Amount #18 & # of Payments at this amount | B94: 0 | C94: 0
A95: Payment Amount #19 & # of Payments at this amount | B95: 0 | C95: 0
A96: Payment Amount #20 & # of Payments at this amount | B96: 0 | C96: 0
A97: Payment Amount #21 & # of Payments at this amount | B97: 0 | C97: 0
A98: Payment Amount #22 & # of Payments at this amount | B98: 0 | C98: 0
A99: Payment Amount #23 & # of Payments at this amount | B99: 0 | C99: 0
A100: Payment Amount #24 & # of Payments at this amount | B100: 0 | C100: 0
A101: Payment Amount #25 & # of Payments at this amount | B101: 0 | C101: 0
A102: Total Add'l Subscription Payments (will automatically be added to the Schdl above) | B102: =(B81*C81)+(B82*C82)+(B83*C83)+(B84*C84)+(B85*C85)+(B86*C86)+(B87*C87)+(B88*C88)+(B89*C89)+(B90*C90)+(B91*C91)+(B92*C92)+(B93*C93)+(B94*C94)+(B95*C95)+(B96*C96)+(B97*C97)+(B98*C98)+(B99*C99)+(B100*C100)+(B101*C101) -> 0 | C102: =SUM(C81:C101) -> 0
A105: Step 2 - Fill out the "Other Payment Considerations" section (starting on row 18) ONLY if instructed to do so on the Data Input tab
A106: The Termination Penalty line should only have an amount listed if a termination clause is deemed Reasonably Certain to be exercised
A107: based on decisions by the Agency (response from the Data Input tab is shown in col C) AND this termination will cause a Penalty to be due.
A109: Steps 3 - 8 are OPTIONAL (calculation of Present Value and Amortization Tables)
A110: Step 3 - Click the Macro button below to Generate the first 2 columns of the Present Value (PV) Table.
A113: Step 4 - Using the Payment Schedule filled out in Steps 1 & 2, fill in the Payment Amounts into col F of the PV Table.
A114: a - If there are 12 payments for the 1st payment amount, and 6 payments for the 2nd payment amount, list the 1st amount in the
A115: first 12 rows of the Table, then the 2nd amount for the next 6 rows, and do the same for the remaining payment amounts listed
A116: in the Payment Schedule until all the payments are filled in on the Table.
A117: b - Make sure not to miss any Skipped Payment periods. If the Payment Schedule indicates the 13th payment is $0, then row 13 of the
A118: Table should be $0, same as the Payment Schedule.
A119: c - If there are any amounts listed for "Other Payment Considerations", add it to the final payment. For example, if the final
A120: payment is $20,000, and there is a Termination Penalty listed for $50,000, then the final payment in the Table should be $70,000.
A121: d - Check to make sure that the sum of all the payments entered into col F of the Table is the same as the Total Undiscounted Cash
A122: Flows in cell B22.
A124: Step 5 - Click the Macro button below to Calculate Net Present Value and Generate the PV and Amortization Tables.
A128: Step 6 - Check data for accuracy:
A129: a - Check the date of the final payment in the Amortization Table and compare to Subscription End Date in cell B8. Make sure the final
A130: payment date is reasonable in comparison to the subscription End Date (within same month if payments are Monthly, within the final
A131: quarter if Quarterly, etc).
A132: b - If payments change (there are amounts in Payment Amount #2 + rows), then check the dates the amounts change in the
A133: Amort Table (col K & M) to make sure the payments change on the correct dates as per the SBITA Contract.
A134: c - If 6a and 6b are BOTH correct, skip to Step 8 (Do NOT click the Start Over Macro Button).
A135: d - If 6a or 6b does not appear to be correct:
A136: i - Double-check the Instructions above (Steps 1 - 6), including the check for # of payments in 1i & check for Table payments in 4d.
A137: ii - Double-check cells B2-B8 by reviewing the SBITA Contract. These cells automatically filled based on answers in the Data Input
A138: tab. Make any necessary corrections in the Data Input tab (NOT in cells B2-B8) - the corresponding question #s are referenced above.
A139: iii - Double-Check the Payment Schedule and Other Payment Considerations sections. Compare back to the SBITA contract to
A140: verify, and correct as necessary.
A141: e - Once corrections have been made, click the Macro button below to Delete the PV & Amortization Tables.
A145: Step 7 - Repeat Steps 3-6 as needed until all checks (1i, 4d, 6a, 6b, and 6di-6diii) are correct.
A147: Step 8 - See Net Present Value calculated in cell B25 for the SBITA Liability and the SBITA Asset Cost in cell B34.
A148: Also, see Present Value Table in columns E-G,
A149: and Amortization Table in columns J-P.
A150: Note: If Implementation Period is not yet complete, then only a Development in Process Asset will be recognized at this point (cell B34 will
A151: return a value of "Not yet determined" if implementation is still in process & will also be noted as "Development in Process" in cell C31).
A152: The SBITA Liability & SBITA Asset will not be recognized until the SBITA is Put Into Service/Go-Live Date. If this is the case, please continue
A153: to track all Implementation Costs. This info will be requested in the following year's Closing Package Activity Form.
A155: Please DO NOT add SBITA implementation costs into the AZ360 Fixed Assets System. This will be done manually as the SBITA Asset
A156: includes not only the implementation costs, but also the Present Value of the Subscription Fixed Payments (Liability).

Sheet SBITA 9 - PV Calc
A1: Present Value Calculations tab - SBITA # 9 (column K) | B1: Contract # | C1: ='Data Input'!K35 -> 0
A2: Periodic Interest Rate (Section VI, #28-29 from Data Input tab) | B2: ='Data Input'!K156 -> 0
A3: Cash Flows at Beginning or End (Section IV, #21) | B3: ='Data Input'!K108 -> 0 | C3: Important:
A4: Number of payments (Section IV, #20) | B4: ='Data Input'!K105 -> 0 | C4: Do not insert/delete/move
A5: Frequency of payments (Section IV, #19) | B5: ='Data Input'!K101 -> 0 | C5: cells B2:B8
A6: Date of first payment (Section IV, #22) | B6: ='Data Input'!K112 -> 00:00:00 | C6: (macros depend on them)
A7: Date Put Into Service/Go-Live Date (#14 from Data Input tab) | B7: ='Data Input'!K87 -> 00:00:00
A8: Subscription End Date including Extensions (Section IV, #17) | B8: ='Data Input'!K96 -> 1900-01-30
A10: Fixed Subscription Payment Schedule (Section V, #23 & see instructions below): | B10: Amount | C10: # of Payments
A11: Payment Amount #1 & # of Payments at this amount | B11: 0 | C11: 0
A12: Payment Amount #2 & # of Payments at this amount | B12: 0 | C12: 0
A13: Payment Amount #3 & # of Payments at this amount | B13: 0 | C13: 0
A14: Payment Amount #4 & # of Payments at this amount | B14: 0 | C14: 0
A15: Totals from add'l table below (if needed) | B15: =B102 -> 0 | C15: =C102 -> 0
A16: Total Subscription Payments (sum of all payment amounts * # of payments) | B16: =(B11*C11)+(B12*C12)+(B13*C13)+(B14*C14)+(B15) -> 0 | C16: =SUM(C11:C15) -> 0
A18: Other Payment Considerations: | C18: Answer per Data Input Tab
A19: Termination Penalty (Section V, #26) | B19: 0 | C19: ='Data Input'!K133 -> 0
A21: Total Other Payment Considerations | B21: =SUM(B19:B20) -> 0
A22: Total Undiscounted Cash Flows (Total Payments + Other Considerations) | B22: =B16+B21 -> 0
C24: Important:
A25: Liability Net Present Value (calculated after Macros below run) | B25: =SUM(G:G) -> 0 | C25: Do not insert/delete/move
C26: NPV must be cell B25
C27: (macros depend on it)
A28: Asset Adjustments (from Asset Adj tab): | B28: Asset Adj Amount
A29: Total Asset Adjustments during Current Year | B29: ='Asset Adj'!K124 -> 0
A30: EXPECTED Future Asset Adjustments (if there is an amt here, s/b DIP) | B30: ='Asset Adj'!K125 -> 0 | C30: DIP or Final?
A31: Total Asset Adjustment | B31: =SUM(B29:B30) -> 0 | C31: ='Asset Adj'!K127 -> FINAL Adj Amount
A34: Software Subscription Asset Cost (calculated after Macros below run) | B34: =IF(C31="FINAL Adj Amount",B25+B31,"Not yet determined") -> 0
A36: The Agency is not required to calculate the Present Value and/or enable Macros,
A37: but Steps 1 & 2 of the instructions below are REQUIRED to be completed.
A38: After completing Steps 1 & 2, if desired to calculate the Present Value, complete Steps 3 - 8:
A40: Note 1: First make sure your Excel settings are correct - | B40: See How to Enable Macros tab
A41: Note 2: Please do not Insert, Delete, or Move any cells, columns or rows as this could cause the Macros to fail.
A42: Note 3: The Teal Cells in columns B & C are for manual input, and the Present Value Table will need to be adjusted in column F.
A43: The Orange cells in columns B & C will automatically fill. The Present Value and Amortization Tables will be generated with the
A44: Macro buttons. Please do not make changes to the orange cells or anywhere within the Tables (except column F).
A46: Step 1 - Fill out the "Fixed Subscription Payment Schedule" above (starting on row 10).
A47: a - To calculate the Fixed Subscription Payment:
A48: i - Start with the fixed subscription periodic payments stated in the contract.
A49: ii - In addition, add "Fixed In-Substance Fees" to the above amount. "Fixed In-Substance Fees" are the Minimum Usage Costs of a variable
A50: usage fee. For Example, if a subscription includes up to 5 gigs of data used for a set fee, but charges extra for every additional gig, the
A51: minimum fee for the first 5 gigs is the "Fixed In-Substance Fee", and the per gig fees above that minimum would be the variable fees.
A52: iii - For payments that depend on an index or a rate (such as the Consumer Price Index or a market interest rate), the payment should be
A53: initially measured using the index or rate published as of the start of the subscription term.
A54: iv - EXCLUDE any variable usage fees and/or support/maintenance service fees included in the payment (see #24 & 25 in Data Input tab)
A55: b - If payments escalate over time, list the beginning payment amount (col B) & # of payments to be paid at that amount (col C), then
A56: move to line #2 and list the next payment amount & # of payments at that amount, etc.
A57: c - If an extension is deemed Reasonably Certain to be exercised, but the amount is listed as "negotiable", then use the fixed
A58: payment amount just prior to the date of extension for those unknown amounts.
A59: d - If there is an Abated or Free Rent period (skipped payment) indicated in the SBITA contract, | C59: Desc of Lease Incentives
A60: indicate that with a $0 payment amount (col B) & the number of payments to be skipped (col C). | C60: ='Data Input'!K139 -> 0
A61: Make sure to put these skipped payments in the correct order chronologically. For example, if there
A62: is a skipped payment for payment 13, list the first 12 payments on the first line, then list line #2 as
A63: $0 (col B) and 1 (col C), then line #3 as the continuing payments after the skipped payment.
A64: e - If a Bonus payment from the SBITA Vendor is included in the contract, subtract that amount from the payment closest to the proper
A65: chronological period (as described in d above). This may cause that payment amount to be negative.
A66: f - If payments are Less Often than Annually,indicate this in the Payment Schedule above by listing the 1st payment on the 1st row & a 1 in
A67: col C, then the 2nd row should show how many years to be skipped in col C ($0 in col B), then the 3rd row will show the 2nd payment.
A68: Repeat until all payments & all years are represented in the Payment Schdl (total in col C should tie to total yrs of subscription term in
A69: cell B4).
A70: g - Use the Teal box below to add any extra details, how payments change over time (For example, (a) Payment increases 5% every 10 yrs;
A71: (b) Payment recalculated every 5 yrs based on CPI, etc.), or describe payment frequency if Less Often than Annually.
A75: h - If there are not enough lines in the Payment Schedule above, use the table below to input the additional payment amounts, and the
A76: totals from the additional table will automatically be added to the Payment Schedule above. Contact the GAAP Group if you need more
A77: than 25 lines.
A78: i - Verify that the total # of payments in cell B4 is the same as the sum of col C (cell C16).
A80: Additional Subscription Payment Lines (if needed) | B80: Amount | C80: # of Payments
A81: Payment Amount #5 & # of Payments at this amount | B81: 0 | C81: 0
A82: Payment Amount #6 & # of Payments at this amount | B82: 0 | C82: 0
A83: Payment Amount #7 & # of Payments at this amount | B83: 0 | C83: 0
A84: Payment Amount #8 & # of Payments at this amount | B84: 0 | C84: 0
A85: Payment Amount #9 & # of Payments at this amount | B85: 0 | C85: 0
A86: Payment Amount #10 & # of Payments at this amount | B86: 0 | C86: 0
A87: Payment Amount #11 & # of Payments at this amount | B87: 0 | C87: 0
A88: Payment Amount #12 & # of Payments at this amount | B88: 0 | C88: 0
A89: Payment Amount #13 & # of Payments at this amount | B89: 0 | C89: 0
A90: Payment Amount #14 & # of Payments at this amount | B90: 0 | C90: 0
A91: Payment Amount #15 & # of Payments at this amount | B91: 0 | C91: 0
A92: Payment Amount #16 & # of Payments at this amount | B92: 0 | C92: 0
A93: Payment Amount #17 & # of Payments at this amount | B93: 0 | C93: 0
A94: Payment Amount #18 & # of Payments at this amount | B94: 0 | C94: 0
A95: Payment Amount #19 & # of Payments at this amount | B95: 0 | C95: 0
A96: Payment Amount #20 & # of Payments at this amount | B96: 0 | C96: 0
A97: Payment Amount #21 & # of Payments at this amount | B97: 0 | C97: 0
A98: Payment Amount #22 & # of Payments at this amount | B98: 0 | C98: 0
A99: Payment Amount #23 & # of Payments at this amount | B99: 0 | C99: 0
A100: Payment Amount #24 & # of Payments at this amount | B100: 0 | C100: 0
A101: Payment Amount #25 & # of Payments at this amount | B101: 0 | C101: 0
A102: Total Add'l Subscription Payments (will automatically be added to the Schdl above) | B102: =(B81*C81)+(B82*C82)+(B83*C83)+(B84*C84)+(B85*C85)+(B86*C86)+(B87*C87)+(B88*C88)+(B89*C89)+(B90*C90)+(B91*C91)+(B92*C92)+(B93*C93)+(B94*C94)+(B95*C95)+(B96*C96)+(B97*C97)+(B98*C98)+(B99*C99)+(B100*C100)+(B101*C101) -> 0 | C102: =SUM(C81:C101) -> 0
A105: Step 2 - Fill out the "Other Payment Considerations" section (starting on row 18) ONLY if instructed to do so on the Data Input tab
A106: The Termination Penalty line should only have an amount listed if a termination clause is deemed Reasonably Certain to be exercised
A107: based on decisions by the Agency (response from the Data Input tab is shown in col C) AND this termination will cause a Penalty to be due.
A109: Steps 3 - 8 are OPTIONAL (calculation of Present Value and Amortization Tables)
A110: Step 3 - Click the Macro button below to Generate the first 2 columns of the Present Value (PV) Table.
A113: Step 4 - Using the Payment Schedule filled out in Steps 1 & 2, fill in the Payment Amounts into col F of the PV Table.
A114: a - If there are 12 payments for the 1st payment amount, and 6 payments for the 2nd payment amount, list the 1st amount in the
A115: first 12 rows of the Table, then the 2nd amount for the next 6 rows, and do the same for the remaining payment amounts listed
A116: in the Payment Schedule until all the payments are filled in on the Table.
A117: b - Make sure not to miss any Skipped Payment periods. If the Payment Schedule indicates the 13th payment is $0, then row 13 of the
A118: Table should be $0, same as the Payment Schedule.
A119: c - If there are any amounts listed for "Other Payment Considerations", add it to the final payment. For example, if the final
A120: payment is $20,000, and there is a Termination Penalty listed for $50,000, then the final payment in the Table should be $70,000.
A121: d - Check to make sure that the sum of all the payments entered into col F of the Table is the same as the Total Undiscounted Cash
A122: Flows in cell B22.
A124: Step 5 - Click the Macro button below to Calculate Net Present Value and Generate the PV and Amortization Tables.
A128: Step 6 - Check data for accuracy:
A129: a - Check the date of the final payment in the Amortization Table and compare to Subscription End Date in cell B8. Make sure the final
A130: payment date is reasonable in comparison to the subscription End Date (within same month if payments are Monthly, within the final
A131: quarter if Quarterly, etc).
A132: b - If payments change (there are amounts in Payment Amount #2 + rows), then check the dates the amounts change in the
A133: Amort Table (col K & M) to make sure the payments change on the correct dates as per the SBITA Contract.
A134: c - If 6a and 6b are BOTH correct, skip to Step 8 (Do NOT click the Start Over Macro Button).
A135: d - If 6a or 6b does not appear to be correct:
A136: i - Double-check the Instructions above (Steps 1 - 6), including the check for # of payments in 1i & check for Table payments in 4d.
A137: ii - Double-check cells B2-B8 by reviewing the SBITA Contract. These cells automatically filled based on answers in the Data Input
A138: tab. Make any necessary corrections in the Data Input tab (NOT in cells B2-B8) - the corresponding question #s are referenced above.
A139: iii - Double-Check the Payment Schedule and Other Payment Considerations sections. Compare back to the SBITA contract to
A140: verify, and correct as necessary.
A141: e - Once corrections have been made, click the Macro button below to Delete the PV & Amortization Tables.
A145: Step 7 - Repeat Steps 3-6 as needed until all checks (1i, 4d, 6a, 6b, and 6di-6diii) are correct.
A147: Step 8 - See Net Present Value calculated in cell B25 for the SBITA Liability and the SBITA Asset Cost in cell B34.
A148: Also, see Present Value Table in columns E-G,
A149: and Amortization Table in columns J-P.
A150: Note: If Implementation Period is not yet complete, then only a Development in Process Asset will be recognized at this point (cell B34 will
A151: return a value of "Not yet determined" if implementation is still in process & will also be noted as "Development in Process" in cell C31).
A152: The SBITA Liability & SBITA Asset will not be recognized until the SBITA is Put Into Service/Go-Live Date. If this is the case, please continue
A153: to track all Implementation Costs. This info will be requested in the following year's Closing Package Activity Form.
A155: Please DO NOT add SBITA implementation costs into the AZ360 Fixed Assets System. This will be done manually as the SBITA Asset
A156: includes not only the implementation costs, but also the Present Value of the Subscription Fixed Payments (Liability).

Sheet SBITA 10 - PV Calc
A1: Present Value Calculations tab - SBITA # 10 (column L) | B1: Contract # | C1: ='Data Input'!L35 -> 0
A2: Periodic Interest Rate (Section VI, #28-29 from Data Input tab) | B2: ='Data Input'!L156 -> 0
A3: Cash Flows at Beginning or End (Section IV, #21) | B3: ='Data Input'!L108 -> 0 | C3: Important:
A4: Number of payments (Section IV, #20) | B4: ='Data Input'!L105 -> 0 | C4: Do not insert/delete/move
A5: Frequency of payments (Section IV, #19) | B5: ='Data Input'!L101 -> 0 | C5: cells B2:B8
A6: Date of first payment (Section IV, #22) | B6: ='Data Input'!L112 -> 00:00:00 | C6: (macros depend on them)
A7: Date Put Into Service/Go-Live Date (#14 from Data Input tab) | B7: ='Data Input'!L87 -> 00:00:00
A8: Subscription End Date including Extensions (Section IV, #17) | B8: ='Data Input'!L96 -> 1900-01-30
A10: Fixed Subscription Payment Schedule (Section V, #23 & see instructions below): | B10: Amount | C10: # of Payments
A11: Payment Amount #1 & # of Payments at this amount | B11: 0 | C11: 0
A12: Payment Amount #2 & # of Payments at this amount | B12: 0 | C12: 0
A13: Payment Amount #3 & # of Payments at this amount | B13: 0 | C13: 0
A14: Payment Amount #4 & # of Payments at this amount | B14: 0 | C14: 0
A15: Totals from add'l table below (if needed) | B15: =B102 -> 0 | C15: =C102 -> 0
A16: Total Subscription Payments (sum of all payment amounts * # of payments) | B16: =(B11*C11)+(B12*C12)+(B13*C13)+(B14*C14)+(B15) -> 0 | C16: =SUM(C11:C15) -> 0
A18: Other Payment Considerations: | C18: Answer per Data Input Tab
A19: Termination Penalty (Section V, #26) | B19: 0 | C19: ='Data Input'!L133 -> 0
A21: Total Other Payment Considerations | B21: =SUM(B19:B20) -> 0
A22: Total Undiscounted Cash Flows (Total Payments + Other Considerations) | B22: =B16+B21 -> 0
C24: Important:
A25: Liability Net Present Value (calculated after Macros below run) | B25: =SUM(G:G) -> 0 | C25: Do not insert/delete/move
C26: NPV must be cell B25
C27: (macros depend on it)
A28: Asset Adjustments (from Asset Adj tab): | B28: Asset Adj Amount
A29: Total Asset Adjustments during Current Year | B29: ='Asset Adj'!L124 -> 0
A30: EXPECTED Future Asset Adjustments (if there is an amt here, s/b DIP) | B30: ='Asset Adj'!L125 -> 0 | C30: DIP or Final?
A31: Total Asset Adjustment | B31: =SUM(B29:B30) -> 0 | C31: ='Asset Adj'!L127 -> FINAL Adj Amount
A34: Software Subscription Asset Cost (calculated after Macros below run) | B34: =IF(C31="FINAL Adj Amount",B25+B31,"Not yet determined") -> 0
A36: The Agency is not required to calculate the Present Value and/or enable Macros,
A37: but Steps 1 & 2 of the instructions below are REQUIRED to be completed.
A38: After completing Steps 1 & 2, if desired to calculate the Present Value, complete Steps 3 - 8:
A40: Note 1: First make sure your Excel settings are correct - | B40: See How to Enable Macros tab
A41: Note 2: Please do not Insert, Delete, or Move any cells, columns or rows as this could cause the Macros to fail.
A42: Note 3: The Teal Cells in columns B & C are for manual input, and the Present Value Table will need to be adjusted in column F.
A43: The Orange cells in columns B & C will automatically fill. The Present Value and Amortization Tables will be generated with the
A44: Macro buttons. Please do not make changes to the orange cells or anywhere within the Tables (except column F).
A46: Step 1 - Fill out the "Fixed Subscription Payment Schedule" above (starting on row 10).
A47: a - To calculate the Fixed Subscription Payment:
A48: i - Start with the fixed subscription periodic payments stated in the contract.
A49: ii - In addition, add "Fixed In-Substance Fees" to the above amount. "Fixed In-Substance Fees" are the Minimum Usage Costs of a variable
A50: usage fee. For Example, if a subscription includes up to 5 gigs of data used for a set fee, but charges extra for every additional gig, the
A51: minimum fee for the first 5 gigs is the "Fixed In-Substance Fee", and the per gig fees above that minimum would be the variable fees.
A52: iii - For payments that depend on an index or a rate (such as the Consumer Price Index or a market interest rate), the payment should be
A53: initially measured using the index or rate published as of the start of the subscription term.
A54: iv - EXCLUDE any variable usage fees and/or support/maintenance service fees included in the payment (see #24 & 25 in Data Input tab)
A55: b - If payments escalate over time, list the beginning payment amount (col B) & # of payments to be paid at that amount (col C), then
A56: move to line #2 and list the next payment amount & # of payments at that amount, etc.
A57: c - If an extension is deemed Reasonably Certain to be exercised, but the amount is listed as "negotiable", then use the fixed
A58: payment amount just prior to the date of extension for those unknown amounts.
A59: d - If there is an Abated or Free Rent period (skipped payment) indicated in the SBITA contract, | C59: Desc of Lease Incentives
A60: indicate that with a $0 payment amount (col B) & the number of payments to be skipped (col C). | C60: ='Data Input'!L139 -> 0
A61: Make sure to put these skipped payments in the correct order chronologically. For example, if there
A62: is a skipped payment for payment 13, list the first 12 payments on the first line, then list line #2 as
A63: $0 (col B) and 1 (col C), then line #3 as the continuing payments after the skipped payment.
A64: e - If a Bonus payment from the SBITA Vendor is included in the contract, subtract that amount from the payment closest to the proper
A65: chronological period (as described in d above). This may cause that payment amount to be negative.
A66: f - If payments are Less Often than Annually,indicate this in the Payment Schedule above by listing the 1st payment on the 1st row & a 1 in
A67: col C, then the 2nd row should show how many years to be skipped in col C ($0 in col B), then the 3rd row will show the 2nd payment.
A68: Repeat until all payments & all years are represented in the Payment Schdl (total in col C should tie to total yrs of subscription term in
A69: cell B4).
A70: g - Use the Teal box below to add any extra details, how payments change over time (For example, (a) Payment increases 5% every 10 yrs;
A71: (b) Payment recalculated every 5 yrs based on CPI, etc.), or describe payment frequency if Less Often than Annually.
A75: h - If there are not enough lines in the Payment Schedule above, use the table below to input the additional payment amounts, and the
A76: totals from the additional table will automatically be added to the Payment Schedule above. Contact the GAAP Group if you need more
A77: than 25 lines.
A78: i - Verify that the total # of payments in cell B4 is the same as the sum of col C (cell C16).
A80: Additional Subscription Payment Lines (if needed) | B80: Amount | C80: # of Payments
A81: Payment Amount #5 & # of Payments at this amount | B81: 0 | C81: 0
A82: Payment Amount #6 & # of Payments at this amount | B82: 0 | C82: 0
A83: Payment Amount #7 & # of Payments at this amount | B83: 0 | C83: 0
A84: Payment Amount #8 & # of Payments at this amount | B84: 0 | C84: 0
A85: Payment Amount #9 & # of Payments at this amount | B85: 0 | C85: 0
A86: Payment Amount #10 & # of Payments at this amount | B86: 0 | C86: 0
A87: Payment Amount #11 & # of Payments at this amount | B87: 0 | C87: 0
A88: Payment Amount #12 & # of Payments at this amount | B88: 0 | C88: 0
A89: Payment Amount #13 & # of Payments at this amount | B89: 0 | C89: 0
A90: Payment Amount #14 & # of Payments at this amount | B90: 0 | C90: 0
A91: Payment Amount #15 & # of Payments at this amount | B91: 0 | C91: 0
A92: Payment Amount #16 & # of Payments at this amount | B92: 0 | C92: 0
A93: Payment Amount #17 & # of Payments at this amount | B93: 0 | C93: 0
A94: Payment Amount #18 & # of Payments at this amount | B94: 0 | C94: 0
A95: Payment Amount #19 & # of Payments at this amount | B95: 0 | C95: 0
A96: Payment Amount #20 & # of Payments at this amount | B96: 0 | C96: 0
A97: Payment Amount #21 & # of Payments at this amount | B97: 0 | C97: 0
A98: Payment Amount #22 & # of Payments at this amount | B98: 0 | C98: 0
A99: Payment Amount #23 & # of Payments at this amount | B99: 0 | C99: 0
A100: Payment Amount #24 & # of Payments at this amount | B100: 0 | C100: 0
A101: Payment Amount #25 & # of Payments at this amount | B101: 0 | C101: 0
A102: Total Add'l Subscription Payments (will automatically be added to the Schdl above) | B102: =(B81*C81)+(B82*C82)+(B83*C83)+(B84*C84)+(B85*C85)+(B86*C86)+(B87*C87)+(B88*C88)+(B89*C89)+(B90*C90)+(B91*C91)+(B92*C92)+(B93*C93)+(B94*C94)+(B95*C95)+(B96*C96)+(B97*C97)+(B98*C98)+(B99*C99)+(B100*C100)+(B101*C101) -> 0 | C102: =SUM(C81:C101) -> 0
A105: Step 2 - Fill out the "Other Payment Considerations" section (starting on row 18) ONLY if instructed to do so on the Data Input tab
A106: The Termination Penalty line should only have an amount listed if a termination clause is deemed Reasonably Certain to be exercised
A107: based on decisions by the Agency (response from the Data Input tab is shown in col C) AND this termination will cause a Penalty to be due.
A109: Steps 3 - 8 are OPTIONAL (calculation of Present Value and Amortization Tables)
A110: Step 3 - Click the Macro button below to Generate the first 2 columns of the Present Value (PV) Table.
A113: Step 4 - Using the Payment Schedule filled out in Steps 1 & 2, fill in the Payment Amounts into col F of the PV Table.
A114: a - If there are 12 payments for the 1st payment amount, and 6 payments for the 2nd payment amount, list the 1st amount in the
A115: first 12 rows of the Table, then the 2nd amount for the next 6 rows, and do the same for the remaining payment amounts listed
A116: in the Payment Schedule until all the payments are filled in on the Table.
A117: b - Make sure not to miss any Skipped Payment periods. If the Payment Schedule indicates the 13th payment is $0, then row 13 of the
A118: Table should be $0, same as the Payment Schedule.
A119: c - If there are any amounts listed for "Other Payment Considerations", add it to the final payment. For example, if the final
A120: payment is $20,000, and there is a Termination Penalty listed for $50,000, then the final payment in the Table should be $70,000.
A121: d - Check to make sure that the sum of all the payments entered into col F of the Table is the same as the Total Undiscounted Cash
A122: Flows in cell B22.
A124: Step 5 - Click the Macro button below to Calculate Net Present Value and Generate the PV and Amortization Tables.
A128: Step 6 - Check data for accuracy:
A129: a - Check the date of the final payment in the Amortization Table and compare to Subscription End Date in cell B8. Make sure the final
A130: payment date is reasonable in comparison to the subscription End Date (within same month if payments are Monthly, within the final
A131: quarter if Quarterly, etc).
A132: b - If payments change (there are amounts in Payment Amount #2 + rows), then check the dates the amounts change in the
A133: Amort Table (col K & M) to make sure the payments change on the correct dates as per the SBITA Contract.
A134: c - If 6a and 6b are BOTH correct, skip to Step 8 (Do NOT click the Start Over Macro Button).
A135: d - If 6a or 6b does not appear to be correct:
A136: i - Double-check the Instructions above (Steps 1 - 6), including the check for # of payments in 1i & check for Table payments in 4d.
A137: ii - Double-check cells B2-B8 by reviewing the SBITA Contract. These cells automatically filled based on answers in the Data Input
A138: tab. Make any necessary corrections in the Data Input tab (NOT in cells B2-B8) - the corresponding question #s are referenced above.
A139: iii - Double-Check the Payment Schedule and Other Payment Considerations sections. Compare back to the SBITA contract to
A140: verify, and correct as necessary.
A141: e - Once corrections have been made, click the Macro button below to Delete the PV & Amortization Tables.
A145: Step 7 - Repeat Steps 3-6 as needed until all checks (1i, 4d, 6a, 6b, and 6di-6diii) are correct.
A147: Step 8 - See Net Present Value calculated in cell B25 for the SBITA Liability and the SBITA Asset Cost in cell B34.
A148: Also, see Present Value Table in columns E-G,
A149: and Amortization Table in columns J-P.
A150: Note: If Implementation Period is not yet complete, then only a Development in Process Asset will be recognized at this point (cell B34 will
A151: return a value of "Not yet determined" if implementation is still in process & will also be noted as "Development in Process" in cell C31).
A152: The SBITA Liability & SBITA Asset will not be recognized until the SBITA is Put Into Service/Go-Live Date. If this is the case, please continue
A153: to track all Implementation Costs. This info will be requested in the following year's Closing Package Activity Form.
A155: Please DO NOT add SBITA implementation costs into the AZ360 Fixed Assets System. This will be done manually as the SBITA Asset
A156: includes not only the implementation costs, but also the Present Value of the Subscription Fixed Payments (Liability).

Sheet Drop Down List
A2: Asset Type | B2: Useful Life in Months
A3: Software <$10M | B3: 60
A4: Software >$10M | B4: 120
A5: Other IT Arrangement | B5: Use SBITA term
A8: Payment System
A9: AFIS
A10: APP
A12: Yes / No / N/A
A13: Yes
A14: No
A15: N/A
A18: Payment frequency
A19: Monthly
A20: Quarterly
A21: Semi-annually
A22: Annually
A24: Payment B or E
A25: Begin
A26: End
A28: Payments Equal / Residual Value?
A29: Yes
A30: No - Fill out on PV Calc Tab
A31: N/A
A33: Termination Penalty?
A34: Yes - Fill out on PV Calc Tab
A35: No
A36: N/A
A38: One source / divided
A39: One Source
A40: Divided - Fill out Subscrptn Split Tab
A42: Type of Division
A43: Specific $ amount
A44: Percentage (%)
A46: Planned Cancellation
A47: Yes - use Planned End Date for Lease End Date
A48: No
A50: Asset Capitalized
A51: Yes - in a prior year
A52: Yes - during current FY
A53: No
A55: Existing or New
A56: New (FY2024)
A57: Existing w/Significant Modification
A59: Asset Cost Adj
A60: Yes - Fill out on Asset Adj Tab
A61: No
A63: Asset Adj - Vendor or 3rd party
A64: Yes - to SBITA Vendor
A65: Yes - to 3rd party consultant
A66: Yes - to SBITA Vendor & 3rd party consultant
A67: No
A69: Staff Time
A70: Yes but was not tracked
A71: Yes & was tracked
A72: No
A74: Estimated implementation staff costs
A75: Yes - estimate included below
A76: No
A77: N/A
